Department Family,Entity,Date Paid,Expense Type,Expense Area,Supplier,Transaction Number,Amount (�),Supplier VAT Registration Number
BEIS,Met Office,2020-02-06,11 SERVICES,BUSINESS GROUP,CACI LTD,438265,15554,380609841
BEIS,Met Office,2020-02-17,04 CONTRACTORS,BUSINESS GROUP,HAYS SPECIALIST RECRUITMENT LTD,438709,488.2,773695871
BEIS,Met Office,2020-02-17,04 CONTRACTORS,BUSINESS GROUP,HAYS SPECIALIST RECRUITMENT LTD,438775,782,773695871
BEIS,Met Office,2020-02-10,04 CONTRACTORS,BUSINESS GROUP,HAYS SPECIALIST RECRUITMENT LTD,438392,859.23,773695871
BEIS,Met Office,2020-02-24,04 CONTRACTORS,BUSINESS GROUP,HAYS SPECIALIST RECRUITMENT LTD,438969,890.97,773695871
BEIS,Met Office,2020-02-10,04 CONTRACTORS,BUSINESS GROUP,HAYS SPECIALIST RECRUITMENT LTD,438393,901.95,773695871
BEIS,Met Office,2020-02-11,04 CONTRACTORS,BUSINESS GROUP,HAYS SPECIALIST RECRUITMENT LTD,438502,903.19,773695871
BEIS,Met Office,2020-02-27,11 SERVICES,BUSINESS GROUP,JCT Ltd,438945,636,714 3761 44
BEIS,Met Office,2020-02-13,06 ACCOMMODATION,BUSINESS GROUP,LHR BUSINESS SUPPORT CENTRE LTD,438647,112.88,927365404
BEIS,Met Office,2020-02-18,11 SERVICES,BUSINESS GROUP,PREDERI,438781,3000,135 2949 04
BEIS,Met Office,2020-02-18,11 SERVICES,BUSINESS GROUP,PREDERI,438780,13200,135 2949 04
BEIS,Met Office,2020-02-10,11 SERVICES,BUSINESS GROUP,REDACTED � PERSONAL DATA,438465,720,-
BEIS,Met Office,2020-02-06,11 SERVICES,BUSINESS GROUP,SPOKE (INTERACTIVE) LTD,438323,700,840156451
BEIS,Met Office,2020-02-12,11 SERVICES,BUSINESS GROUP,UK GBC,437501,1840,919924779
BEIS,Met Office,2020-02-06,13 MISCELLANEOUS,BUSINESS GROUP,UNIVERSITY OF EXETER,438320,1500,142047795
BEIS,Met Office,2020-02-14,11 SERVICES,BUSINESS GROUP,VAISALA LTD,438660,800,336100011
BEIS,Met Office,2020-02-14,11 SERVICES,BUSINESS GROUP,VAISALA LTD,438660,800,336100011
BEIS,Met Office,2020-02-14,11 SERVICES,BUSINESS GROUP,VAISALA LTD,438660,800,336100011
BEIS,Met Office,2020-02-14,11 SERVICES,BUSINESS GROUP,VAISALA LTD,438660,800,336100011
BEIS,Met Office,2020-02-14,11 SERVICES,BUSINESS GROUP,VAISALA LTD,438660,1200,336100011
BEIS,Met Office,2020-02-14,11 SERVICES,BUSINESS GROUP,VAISALA LTD,438660,1200,336100011
BEIS,Met Office,2020-02-14,11 SERVICES,BUSINESS GROUP,VAISALA LTD,438660,1400,336100011
BEIS,Met Office,2020-02-14,11 SERVICES,BUSINESS GROUP,VAISALA LTD,438660,1400,336100011
BEIS,Met Office,2020-02-14,11 SERVICES,BUSINESS GROUP,VAISALA LTD,438660,2400,336100011
BEIS,Met Office,2020-02-14,11 SERVICES,BUSINESS GROUP,VAISALA LTD,438660,2400,336100011
BEIS,Met Office,2020-02-14,11 SERVICES,BUSINESS GROUP,VAISALA LTD,438660,2880,336100011
BEIS,Met Office,2020-02-14,11 SERVICES,BUSINESS GROUP,VAISALA LTD,438660,2880,336100011
BEIS,Met Office,2020-02-14,11 SERVICES,BUSINESS GROUP,VAISALA LTD,438660,4148.73,336100011
BEIS,Met Office,2020-02-14,11 SERVICES,BUSINESS GROUP,VAISALA LTD,438660,4320,336100011
BEIS,Met Office,2020-02-14,11 SERVICES,BUSINESS GROUP,VAISALA LTD,438660,4812.73,336100011
BEIS,Met Office,2020-02-14,11 SERVICES,BUSINESS GROUP,VAISALA LTD,438660,5040,336100011
BEIS,Met Office,2020-02-14,11 SERVICES,BUSINESS GROUP,VAISALA LTD,438660,6700,336100011
BEIS,Met Office,2020-02-14,11 SERVICES,BUSINESS GROUP,VAISALA LTD,438660,7019.27,336100011
BEIS,Met Office,2020-02-14,11 SERVICES,BUSINESS GROUP,VAISALA LTD,438660,7020,336100011
BEIS,Met Office,2020-02-14,11 SERVICES,BUSINESS GROUP,VAISALA LTD,438660,7069.09,336100011
BEIS,Met Office,2020-02-14,11 SERVICES,BUSINESS GROUP,VAISALA LTD,438660,8640,336100011
BEIS,Met Office,2020-02-14,11 SERVICES,BUSINESS GROUP,VAISALA LTD,438660,12346.18,336100011
BEIS,Met Office,2020-02-05,06 ACCOMMODATION,CHIEF FINANCIAL OFFICER,ABOVE THE REST COMMERCIAL CLEANING LTD,438190,565,166969348
BEIS,Met Office,2020-02-03,11 SERVICES,CHIEF FINANCIAL OFFICER,ACHILLES INFORMATION LIMITED,438057,900,GB 663 5624 23
BEIS,Met Office,2020-02-03,11 SERVICES,CHIEF FINANCIAL OFFICER,ACHILLES INFORMATION LIMITED,438057,900,GB 663 5624 23
BEIS,Met Office,2020-02-18,11 SERVICES,CHIEF FINANCIAL OFFICER,ALLSTAR BUSINESS SOLUTIONS LTD,438831,4129.93,747880191
BEIS,Met Office,2020-02-06,11 SERVICES,CHIEF FINANCIAL OFFICER,ALLSTAR BUSINESS SOLUTIONS LTD,438318,5563.67,747880191
BEIS,Met Office,2020-02-13,11 SERVICES,CHIEF FINANCIAL OFFICER,ALPHABET (GB) LTD,438651,180.63,572417244
BEIS,Met Office,2020-02-13,11 SERVICES,CHIEF FINANCIAL OFFICER,ALPHABET (GB) LTD,438649,189.8,572417244
BEIS,Met Office,2020-02-13,11 SERVICES,CHIEF FINANCIAL OFFICER,ANVIL MOBILE LIMITED,438570,328.23,981686175
BEIS,Met Office,2020-02-11,11 SERVICES,CHIEF FINANCIAL OFFICER,ANVIL MOBILE LIMITED,438500,332.75,981686175
BEIS,Met Office,2020-02-28,13 MISCELLANEOUS,CHIEF FINANCIAL OFFICER,ARTHUR J. GALLAGHER INSURANCE BROKERS LIMITED,430648,-6827.83,GB484746209
BEIS,Met Office,2020-02-28,13 MISCELLANEOUS,CHIEF FINANCIAL OFFICER,ARTHUR J. GALLAGHER INSURANCE BROKERS LIMITED,434742,-1994.9,GB484746209
BEIS,Met Office,2020-02-12,06 ACCOMMODATION,CHIEF FINANCIAL OFFICER,BENCHMARK SURVEYS,438569,700,631397831
BEIS,Met Office,2020-02-26,06 ACCOMMODATION,CHIEF FINANCIAL OFFICER,Biffa Waste Services Ltd,439074,61.1,537911627
BEIS,Met Office,2020-02-26,06 ACCOMMODATION,CHIEF FINANCIAL OFFICER,Biffa Waste Services Ltd,439075,66.95,537911627
BEIS,Met Office,2020-02-26,06 ACCOMMODATION,CHIEF FINANCIAL OFFICER,Biffa Waste Services Ltd,439072,97.11,537911627
BEIS,Met Office,2020-02-19,06 ACCOMMODATION,CHIEF FINANCIAL OFFICER,Biffa Waste Services Ltd,438829,217.1,537911627
BEIS,Met Office,2020-02-24,06 ACCOMMODATION,CHIEF FINANCIAL OFFICER,Biffa Waste Services Ltd,438196,230,537911627
BEIS,Met Office,2020-02-26,06 ACCOMMODATION,CHIEF FINANCIAL OFFICER,Biffa Waste Services Ltd,439076,378.04,537911627
BEIS,Met Office,2020-02-26,06 ACCOMMODATION,CHIEF FINANCIAL OFFICER,Biffa Waste Services Ltd,439077,540.02,537911627
BEIS,Met Office,2020-02-26,06 ACCOMMODATION,CHIEF FINANCIAL OFFICER,Biffa Waste Services Ltd,439073,563.55,537911627
BEIS,Met Office,2020-02-07,06 ACCOMMODATION,CHIEF FINANCIAL OFFICER,BPC ENERGY LTD,438168,590,177265088
BEIS,Met Office,2020-02-27,06 ACCOMMODATION,CHIEF FINANCIAL OFFICER,BPC ENERGY LTD,438820,1104.8,177265088
BEIS,Met Office,2020-02-17,06 ACCOMMODATION,CHIEF FINANCIAL OFFICER,BRITISH GAS TRADING LTD,438782,7153.47,684966762
BEIS,Met Office,2020-02-13,11 SERVICES,CHIEF FINANCIAL OFFICER,BT CONFERENCING,438623,267.47,245719348
BEIS,Met Office,2020-02-19,11 SERVICES,CHIEF FINANCIAL OFFICER,BT GLOBAL SERVICES,438896,15289.46,245719348
BEIS,Met Office,2020-02-27,11 SERVICES,CHIEF FINANCIAL OFFICER,BT PLC,439117,364.06,245719348
BEIS,Met Office,2020-02-07,11 SERVICES,CHIEF FINANCIAL OFFICER,BT PLC,438213,3598.16,245719348
BEIS,Met Office,2020-02-26,11 SERVICES,CHIEF FINANCIAL OFFICER,BT PLC,439013,18798.41,245719348
BEIS,Met Office,2020-02-07,11 SERVICES,CHIEF FINANCIAL OFFICER,BT PLC,438184,20355.73,245719348
BEIS,Met Office,2020-02-11,11 SERVICES,CHIEF FINANCIAL OFFICER,BUILDING PROTECTION SYSTEMS (NI) LTD,438549,65.56,366309834
BEIS,Met Office,2020-02-28,06 ACCOMMODATION,CHIEF FINANCIAL OFFICER,BUSINESS STREAM,438986,7105.48,945850885
BEIS,Met Office,2020-02-19,06 ACCOMMODATION,CHIEF FINANCIAL OFFICER,CALOR GAS LIMITED,438864,474.23,207610984
BEIS,Met Office,2020-02-05,06 ACCOMMODATION,CHIEF FINANCIAL OFFICER,CALOR GAS LIMITED,438187,524.85,207610984
BEIS,Met Office,2020-02-19,06 ACCOMMODATION,CHIEF FINANCIAL OFFICER,CANON UK LTD,438830,150,523797128
BEIS,Met Office,2020-02-19,13 MISCELLANEOUS,CHIEF FINANCIAL OFFICER,CANON UK LTD,438862,949.14,523797128
BEIS,Met Office,2020-02-10,11 SERVICES,CHIEF FINANCIAL OFFICER,CAPITAL CONTRACTS (SW) LTD,438319,1911.4,874200733
BEIS,Met Office,2020-02-19,06 ACCOMMODATION,CHIEF FINANCIAL OFFICER,CARDIFF COMMISSIONING LTD,438816,650,484190139
BEIS,Met Office,2020-02-19,06 ACCOMMODATION,CHIEF FINANCIAL OFFICER,CARDIFF COMMISSIONING LTD,438816,3150,484190139
BEIS,Met Office,2020-02-19,06 ACCOMMODATION,CHIEF FINANCIAL OFFICER,CARDIFF COMMISSIONING LTD,438814,3800,484190139
BEIS,Met Office,2020-02-05,11 SERVICES,CHIEF FINANCIAL OFFICER,CARDIFF EXECUTIVE CENTRE LTD,438169,56.97,864497378
BEIS,Met Office,2020-02-27,06 ACCOMMODATION,CHIEF FINANCIAL OFFICER,CBRE,436572,58.73,863613615
BEIS,Met Office,2020-02-27,06 ACCOMMODATION,CHIEF FINANCIAL OFFICER,CBRE,436571,96.64,863613615
BEIS,Met Office,2020-02-27,13 MISCELLANEOUS,CHIEF FINANCIAL OFFICER,CBRE,436572,117.32,863613615
BEIS,Met Office,2020-02-25,06 ACCOMMODATION,CHIEF FINANCIAL OFFICER,CBRE,439011,4392.9,863613615
BEIS,Met Office,2020-02-17,06 ACCOMMODATION,CHIEF FINANCIAL OFFICER,CBRE MANAGED SERVICES LTD,438645,10555.46,853936883
BEIS,Met Office,2020-02-25,PLANT AND EQUIPMENT,CHIEF FINANCIAL OFFICER,CBRE MANAGED SERVICES LTD,439014,53572.93,853936883
BEIS,Met Office,2020-02-14,06 ACCOMMODATION,CHIEF FINANCIAL OFFICER,CBRE MANAGED SERVICES LTD,438644,139096,853936883
BEIS,Met Office,2020-02-27,08 SOFTWARE LICENCES,CHIEF FINANCIAL OFFICER,CEMAR,439082,120,915042161
BEIS,Met Office,2020-02-27,08 SOFTWARE LICENCES,CHIEF FINANCIAL OFFICER,CEMAR,439118,180,915042161
BEIS,Met Office,2020-02-27,08 SOFTWARE LICENCES,CHIEF FINANCIAL OFFICER,CEMAR,439082,330,915042161
BEIS,Met Office,2020-02-27,08 SOFTWARE LICENCES,CHIEF FINANCIAL OFFICER,CEMAR,439082,720,915042161
BEIS,Met Office,2020-02-03,08 SOFTWARE LICENCES,CHIEF FINANCIAL OFFICER,CEMAR,438112,1130,915042161
BEIS,Met Office,2020-02-19,06 ACCOMMODATION,CHIEF FINANCIAL OFFICER,CLEANING MATTERS BEDFORD LTD,438860,598,847592286
BEIS,Met Office,2020-02-11,FIXTURE & FITTINGS,CHIEF FINANCIAL OFFICER,COMMERCIAL TRANSFER LTD,438222,652,891436990
BEIS,Met Office,2020-02-17,06 ACCOMMODATION,CHIEF FINANCIAL OFFICER,CORONA ENERGY LTD,438787,624.89,577704800
BEIS,Met Office,2020-02-17,06 ACCOMMODATION,CHIEF FINANCIAL OFFICER,CORONA ENERGY LTD,438786,15596.42,577704800
BEIS,Met Office,2020-02-10,11 SERVICES,CHIEF FINANCIAL OFFICER,CORPS SECURITY,438259,244.15,863536505
BEIS,Met Office,2020-02-13,11 SERVICES,CHIEF FINANCIAL OFFICER,CORPS SECURITY,438510,926.16,863536505
BEIS,Met Office,2020-02-10,11 SERVICES,CHIEF FINANCIAL OFFICER,CORPS SECURITY,438260,1512,863536505
BEIS,Met Office,2020-02-10,11 SERVICES,CHIEF FINANCIAL OFFICER,CORPS SECURITY,438258,9615.94,863536505
BEIS,Met Office,2020-02-10,11 SERVICES,CHIEF FINANCIAL OFFICER,CORPS SECURITY,438257,19172.2,863536505
BEIS,Met Office,2020-02-24,06 ACCOMMODATION,CHIEF FINANCIAL OFFICER,COUNTRYWIDE GROUNDS MAINTENANCE LTD,438959,137.58,611731279
BEIS,Met Office,2020-02-21,06 ACCOMMODATION,CHIEF FINANCIAL OFFICER,COUNTRYWIDE GROUNDS MAINTENANCE LTD,438956,580,611731279
BEIS,Met Office,2020-02-21,06 ACCOMMODATION,CHIEF FINANCIAL OFFICER,COUNTRYWIDE GROUNDS MAINTENANCE LTD,438957,625,611731279
BEIS,Met Office,2020-02-21,06 ACCOMMODATION,CHIEF FINANCIAL OFFICER,COUNTRYWIDE GROUNDS MAINTENANCE LTD,438958,625,611731279
BEIS,Met Office,2020-02-13,06 ACCOMMODATION,CHIEF FINANCIAL OFFICER,D&G OFFICE SERVICES LTD,438509,280,272997547
BEIS,Met Office,2020-02-12,13 MISCELLANEOUS,CHIEF FINANCIAL OFFICER,DEMSTAR BUSINESS SOLUTIONS LTD,21199,139.78,10156145J
BEIS,Met Office,2020-02-06,06 ACCOMMODATION,CHIEF FINANCIAL OFFICER,DINNET & KINORD ESTATES,438336,4132.72,267044752
BEIS,Met Office,2020-02-05,13 MISCELLANEOUS,CHIEF FINANCIAL OFFICER,EAST ANGLIAN WATER COOLER CO,438177,21.6,676668178
BEIS,Met Office,2020-02-19,11 SERVICES,CHIEF FINANCIAL OFFICER,ECMWF,436958,28597.92,NOTVATREG
BEIS,Met Office,2020-02-27,13 MISCELLANEOUS,CHIEF FINANCIAL OFFICER,EDEN SPRINGS UK LTD,438951,374.58,232160411
BEIS,Met Office,2020-02-06,06 ACCOMMODATION,CHIEF FINANCIAL OFFICER,EDF ENERGY CUSTOMERS PLC,438185,-125969.2,523041202
BEIS,Met Office,2020-02-07,06 ACCOMMODATION,CHIEF FINANCIAL OFFICER,EDF ENERGY CUSTOMERS PLC,438186,-112786.05,523041202
BEIS,Met Office,2020-02-24,06 ACCOMMODATION,CHIEF FINANCIAL OFFICER,EDF ENERGY CUSTOMERS PLC,438811,4181.65,523041202
BEIS,Met Office,2020-02-07,06 ACCOMMODATION,CHIEF FINANCIAL OFFICER,EDF ENERGY CUSTOMERS PLC,438183,113157.08,523041202
BEIS,Met Office,2020-02-07,06 ACCOMMODATION,CHIEF FINANCIAL OFFICER,EDF ENERGY CUSTOMERS PLC,438376,115487.04,523041202
BEIS,Met Office,2020-02-06,06 ACCOMMODATION,CHIEF FINANCIAL OFFICER,EDF ENERGY CUSTOMERS PLC,438188,126378.68,523041202
BEIS,Met Office,2020-02-07,06 ACCOMMODATION,CHIEF FINANCIAL OFFICER,EDF ENERGY CUSTOMERS PLC,438378,126969.5,523041202
BEIS,Met Office,2020-02-07,06 ACCOMMODATION,CHIEF FINANCIAL OFFICER,EDF ENERGY CUSTOMERS PLC,438377,383403.58,523041202
BEIS,Met Office,2020-02-17,11 SERVICES,CHIEF FINANCIAL OFFICER,EDSON TIGER LTD,438114,1450,166910983
BEIS,Met Office,2020-02-17,11 SERVICES,CHIEF FINANCIAL OFFICER,EDSON TIGER LTD,438508,5525,166910983
BEIS,Met Office,2020-02-19,11 SERVICES,CHIEF FINANCIAL OFFICER,EIR,21235,50.68,4736919B
BEIS,Met Office,2020-02-19,03 STAFF COSTS T&S,CHIEF FINANCIAL OFFICER,ENTERPRISE RENT A CAR UK LTD,438903,333.89,215557314
BEIS,Met Office,2020-02-27,03 STAFF COSTS T&S,CHIEF FINANCIAL OFFICER,ENTERPRISE RENT A CAR UK LTD,439124,710.36,215557314
BEIS,Met Office,2020-02-06,03 STAFF COSTS T&S,CHIEF FINANCIAL OFFICER,ENTERPRISE RENT A CAR UK LTD,438317,1041.32,215557314
BEIS,Met Office,2020-02-19,03 STAFF COSTS T&S,CHIEF FINANCIAL OFFICER,ENTERPRISE RENT A CAR UK LTD,438904,2468.07,215557314
BEIS,Met Office,2020-02-13,03 STAFF COSTS T&S,CHIEF FINANCIAL OFFICER,ENTERPRISE RENT A CAR UK LTD,438650,3193.68,215557314
BEIS,Met Office,2020-02-27,03 STAFF COSTS T&S,CHIEF FINANCIAL OFFICER,ENTERPRISE RENT A CAR UK LTD,439123,3765.04,215557314
BEIS,Met Office,2020-02-06,03 STAFF COSTS T&S,CHIEF FINANCIAL OFFICER,ENTERPRISE RENT A CAR UK LTD,438316,4153.82,215557314
BEIS,Met Office,2020-02-17,11 SERVICES,CHIEF FINANCIAL OFFICER,EXPONENTIAL-E,438778,1580.61,GB798572653
BEIS,Met Office,2020-02-05,FIXTURE & FITTINGS,CHIEF FINANCIAL OFFICER,FMS INTERIOR SERVICES LTD,438195,2.56,922056940
BEIS,Met Office,2020-02-05,FIXTURE & FITTINGS,CHIEF FINANCIAL OFFICER,FMS INTERIOR SERVICES LTD,438195,127.92,922056940
BEIS,Met Office,2020-02-24,06 ACCOMMODATION,CHIEF FINANCIAL OFFICER,FMS INTERIOR SERVICES LTD,438965,936.12,922056940
BEIS,Met Office,2020-02-13,06 ACCOMMODATION,CHIEF FINANCIAL OFFICER,FOX GROUNDS MAINTENANCE & LANDSCAPING LTD,438574,296.7,129495383
BEIS,Met Office,2020-02-13,06 ACCOMMODATION,CHIEF FINANCIAL OFFICER,FOX GROUNDS MAINTENANCE & LANDSCAPING LTD,438573,630,129495383
BEIS,Met Office,2020-02-11,06 ACCOMMODATION,CHIEF FINANCIAL OFFICER,FUTURE CLEANING SERVICES (SW) LTD.,438548,48.23,756916489
BEIS,Met Office,2020-02-05,06 ACCOMMODATION,CHIEF FINANCIAL OFFICER,FUTURE CLEANING SERVICES (SW) LTD.,438237,365.28,756916489
BEIS,Met Office,2020-02-13,06 ACCOMMODATION,CHIEF FINANCIAL OFFICER,FUTURE CLEANING SERVICES (SW) LTD.,438610,820.48,756916489
BEIS,Met Office,2020-02-13,11 SERVICES,CHIEF FINANCIAL OFFICER,GAMMA BUSINESS COMMUNICATIONS LTD,438619,91.9,823820344
BEIS,Met Office,2020-02-13,11 SERVICES,CHIEF FINANCIAL OFFICER,GAMMA BUSINESS COMMUNICATIONS LTD,438619,405.6,823820344
BEIS,Met Office,2020-02-17,11 SERVICES,CHIEF FINANCIAL OFFICER,GAMMA TELECOM LTD,438593,41.95,823820344
BEIS,Met Office,2020-02-17,11 SERVICES,CHIEF FINANCIAL OFFICER,GAMMA TELECOM LTD,438593,25610.37,823820344
BEIS,Met Office,2020-02-07,11 SERVICES,CHIEF FINANCIAL OFFICER,GIBRALTAR NYNEX COMMUNICATIONS LTD,438335,144.35,NOVAT
BEIS,Met Office,2020-02-25,06 ACCOMMODATION,CHIEF FINANCIAL OFFICER,GREENSTAR CLEANERS LTD,439063,110,492376222
BEIS,Met Office,2020-02-06,FIXTURE & FITTINGS,CHIEF FINANCIAL OFFICER,GRS BUILDING SERVICES SOUTH-WEST,438314,450,-
BEIS,Met Office,2020-02-06,06 ACCOMMODATION,CHIEF FINANCIAL OFFICER,GRS BUILDING SERVICES SOUTH-WEST,438313,585,-
BEIS,Met Office,2020-02-12,11 SERVICES,CHIEF FINANCIAL OFFICER,HARPER MACLEOD LLP,438547,384.4,762130557
BEIS,Met Office,2020-02-10,06 ACCOMMODATION,CHIEF FINANCIAL OFFICER,Health & Safety Laboratory,438192,26700,888810177
BEIS,Met Office,2020-02-19,11 SERVICES,CHIEF FINANCIAL OFFICER,INTEROUTE COMMUNICATIONS LIMITED,438863,3800,832 7071 39
BEIS,Met Office,2020-02-05,11 SERVICES,CHIEF FINANCIAL OFFICER,INTEROUTE COMMUNICATIONS LIMITED,437620,3868.4,832 7071 39
BEIS,Met Office,2020-02-18,11 SERVICES,CHIEF FINANCIAL OFFICER,INTEROUTE COMMUNICATIONS LIMITED,438827,6753.02,832 7071 39
BEIS,Met Office,2020-02-19,06 ACCOMMODATION,CHIEF FINANCIAL OFFICER,JAMES & MARCIA BENJAMIN,438312,520,-
BEIS,Met Office,2020-02-13,11 SERVICES,CHIEF FINANCIAL OFFICER,JERSEY TELECOM,438622,1308.25,NOTVATREG
BEIS,Met Office,2020-02-06,03 STAFF COSTS T&S,CHIEF FINANCIAL OFFICER,LEASEDRIVE RENTAL MANAGEMENT LTD,438277,218.5,733546040
BEIS,Met Office,2020-02-06,11 SERVICES,CHIEF FINANCIAL OFFICER,LICENCE BUREAU LTD,438315,207.45,820219467
BEIS,Met Office,2020-02-24,11 SERVICES,CHIEF FINANCIAL OFFICER,MAWASEM LTD,439022,238777.13,197694731
BEIS,Met Office,2020-02-07,06 ACCOMMODATION,CHIEF FINANCIAL OFFICER,MCDONALD & MUNRO LTD,436940,1647.8,-
BEIS,Met Office,2020-02-07,11 SERVICES,CHIEF FINANCIAL OFFICER,MITIE SECURITY LTD,438375,29.2,416706654
BEIS,Met Office,2020-02-07,11 SERVICES,CHIEF FINANCIAL OFFICER,MITIE SECURITY LTD,438373,817.6,416706654
BEIS,Met Office,2020-02-27,06 ACCOMMODATION,CHIEF FINANCIAL OFFICER,MORAY COUNCIL,439161,294.66,663755506
BEIS,Met Office,2020-02-27,06 ACCOMMODATION,CHIEF FINANCIAL OFFICER,MORAY COUNCIL,439160,294.67,663755506
BEIS,Met Office,2020-02-11,11 SERVICES,CHIEF FINANCIAL OFFICER,MORSAFE LTD,438516,975,856010741
BEIS,Met Office,2020-02-11,11 SERVICES,CHIEF FINANCIAL OFFICER,MORSAFE LTD,438516,975,856010741
BEIS,Met Office,2020-02-06,11 SERVICES,CHIEF FINANCIAL OFFICER,Morton Fraser LLP,438158,360,269129336
BEIS,Met Office,2020-02-21,06 ACCOMMODATION,CHIEF FINANCIAL OFFICER,MOUNT CHARLES GROUP LTD,438953,485.72,517116274
BEIS,Met Office,2020-02-26,06 ACCOMMODATION,CHIEF FINANCIAL OFFICER,NATS (EN ROUTE) PLC,439071,6300.47,440379456004
BEIS,Met Office,2020-02-20,07 EQUIPMENT,CHIEF FINANCIAL OFFICER,NATWEST COMMERCIAL CARDS DIVISION,438917,12047.8,N/A
BEIS,Met Office,2020-02-07,06 ACCOMMODATION,CHIEF FINANCIAL OFFICER,NEDERMAN LTD,438193,250,108222647
BEIS,Met Office,2020-02-07,06 ACCOMMODATION,CHIEF FINANCIAL OFFICER,NESS ENGINEERING LTD,438328,163.22,430188472
BEIS,Met Office,2020-02-07,06 ACCOMMODATION,CHIEF FINANCIAL OFFICER,NESS ENGINEERING LTD,438329,315.25,430188472
BEIS,Met Office,2020-02-07,06 ACCOMMODATION,CHIEF FINANCIAL OFFICER,NESS ENGINEERING LTD,438271,425.78,430188472
BEIS,Met Office,2020-02-05,06 ACCOMMODATION,CHIEF FINANCIAL OFFICER,NORSCOTT VENDING SERVICES LTD,438191,85,751402071
BEIS,Met Office,2020-02-11,06 ACCOMMODATION,CHIEF FINANCIAL OFFICER,OCS Group UK Limited,438515,40153.57,GB238034379
BEIS,Met Office,2020-02-11,06 ACCOMMODATION,CHIEF FINANCIAL OFFICER,OCS Group UK Limited,438515,103176.31,GB238034379
BEIS,Met Office,2020-02-10,04 CONTRACTORS,CHIEF FINANCIAL OFFICER,OUTSOURCE UK LIMITED,438445,4521.79,576118722
BEIS,Met Office,2020-02-18,13 MISCELLANEOUS,CHIEF FINANCIAL OFFICER,POSTURITE (UK) LTD,438576,10.32,583565114
BEIS,Met Office,2020-02-18,13 MISCELLANEOUS,CHIEF FINANCIAL OFFICER,POSTURITE (UK) LTD,438088,13.62,583565114
BEIS,Met Office,2020-02-18,13 MISCELLANEOUS,CHIEF FINANCIAL OFFICER,POSTURITE (UK) LTD,438791,51.66,583565114
BEIS,Met Office,2020-02-18,13 MISCELLANEOUS,CHIEF FINANCIAL OFFICER,POSTURITE (UK) LTD,438224,63.23,583565114
BEIS,Met Office,2020-02-17,13 MISCELLANEOUS,CHIEF FINANCIAL OFFICER,POSTURITE (UK) LTD,438074,199.55,583565114
BEIS,Met Office,2020-02-13,06 ACCOMMODATION,CHIEF FINANCIAL OFFICER,POWER NI ENERGY LTD,438624,739.35,617518142
BEIS,Met Office,2020-02-26,04 CONTRACTORS,CHIEF FINANCIAL OFFICER,QUALSERV CONSULTING LTD,439090,6300,719067718
BEIS,Met Office,2020-02-27,03 STAFF COSTS T&S,CHIEF FINANCIAL OFFICER,RAINBOW CITY TAXIS,439122,102.2,724295039
BEIS,Met Office,2020-02-13,06 ACCOMMODATION,CHIEF FINANCIAL OFFICER,REDACTED � PERSONAL DATA,438648,95,899936427
BEIS,Met Office,2020-02-03,11 SERVICES,CHIEF FINANCIAL OFFICER,REDACTED � PERSONAL DATA,438073,119.2,729159704
BEIS,Met Office,2020-02-03,11 SERVICES,CHIEF FINANCIAL OFFICER,REDACTED � PERSONAL DATA,438072,149,729159704
BEIS,Met Office,2020-02-05,06 ACCOMMODATION,CHIEF FINANCIAL OFFICER,REDACTED � PERSONAL DATA,438175,200,N/A
BEIS,Met Office,2020-02-11,06 ACCOMMODATION,CHIEF FINANCIAL OFFICER,REDACTED � PERSONAL DATA,438494,730,-
BEIS,Met Office,2020-02-19,06 ACCOMMODATION,CHIEF FINANCIAL OFFICER,REDACTED � PERSONAL DATA,438821,1150,426523462
BEIS,Met Office,2020-02-13,06 ACCOMMODATION,CHIEF FINANCIAL OFFICER,RIVER RIDGE,438646,135.51,176286083
BEIS,Met Office,2020-02-13,06 ACCOMMODATION,CHIEF FINANCIAL OFFICER,SAFESTORE LTD,438578,2681.21,722887607
BEIS,Met Office,2020-02-05,13 MISCELLANEOUS,CHIEF FINANCIAL OFFICER,SELECTA UK LTD,438209,193.7,581705924
BEIS,Met Office,2020-02-13,06 ACCOMMODATION,CHIEF FINANCIAL OFFICER,SHETLAND CLEANING SERVICES,438626,696.67,430028404
BEIS,Met Office,2020-02-05,11 SERVICES,CHIEF FINANCIAL OFFICER,Siemens Plc,438194,683.19,GB 927 317 516
BEIS,Met Office,2020-02-10,04 CONTRACTORS,CHIEF FINANCIAL OFFICER,SOLOS CONSULTANTS LTD,438447,6353.6,812035476
BEIS,Met Office,2020-02-05,06 ACCOMMODATION,CHIEF FINANCIAL OFFICER,SOUTH WEST WATER LTD,438197,419.08,236873674
BEIS,Met Office,2020-02-13,06 ACCOMMODATION,CHIEF FINANCIAL OFFICER,SOUTH WEST WATER LTD,438630,687.28,236873674
BEIS,Met Office,2020-02-18,11 SERVICES,CHIEF FINANCIAL OFFICER,ST JOHN AMBULANCE,438171,645,564553916
BEIS,Met Office,2020-02-26,06 ACCOMMODATION,CHIEF FINANCIAL OFFICER,ST MODWEN VENTURES LTD,439034,74.08,975081008
BEIS,Met Office,2020-02-26,06 ACCOMMODATION,CHIEF FINANCIAL OFFICER,ST MODWEN VENTURES LTD,439061,104.59,975081008
BEIS,Met Office,2020-02-26,06 ACCOMMODATION,CHIEF FINANCIAL OFFICER,ST MODWEN VENTURES LTD,439062,142.24,975081008
BEIS,Met Office,2020-02-25,06 ACCOMMODATION,CHIEF FINANCIAL OFFICER,ST MODWEN VENTURES LTD,439032,172.29,975081008
BEIS,Met Office,2020-02-28,06 ACCOMMODATION,CHIEF FINANCIAL OFFICER,ST MODWEN VENTURES LTD,439186,862.5,975081008
BEIS,Met Office,2020-02-07,06 ACCOMMODATION,CHIEF FINANCIAL OFFICER,STONE HILL PARK LTD,438371,29.92,196461180
BEIS,Met Office,2020-02-04,06 ACCOMMODATION,CHIEF FINANCIAL OFFICER,STRINGFELLOW BUILDING CONTRACTORS LTD.,438162,650,155807746
BEIS,Met Office,2020-02-24,06 ACCOMMODATION,CHIEF FINANCIAL OFFICER,STRINGFELLOW BUILDING CONTRACTORS LTD.,438801,1240,155807746
BEIS,Met Office,2020-02-11,11 SERVICES,CHIEF FINANCIAL OFFICER,SURE (GUERNSEY) LTD,438545,269.89,NOTVAT
BEIS,Met Office,2020-02-13,11 SERVICES,CHIEF FINANCIAL OFFICER,SURE SOUTH ATLANTIC LTD,438582,563,-
BEIS,Met Office,2020-02-13,11 SERVICES,CHIEF FINANCIAL OFFICER,SURE SOUTH ATLANTIC LTD,438588,3503.02,NOVATREG
BEIS,Met Office,2020-02-13,11 SERVICES,CHIEF FINANCIAL OFFICER,SURE SOUTH ATLANTIC LTD,438581,4743,-
BEIS,Met Office,2020-02-17,11 SERVICES,CHIEF FINANCIAL OFFICER,SURE SOUTH ATLANTIC LTD (ST HELENA),438783,220,30005
BEIS,Met Office,2020-02-19,11 SERVICES,CHIEF FINANCIAL OFFICER,SWISSCOM (SCHWEIZ) AG,438832,86.06,-
BEIS,Met Office,2020-02-26,11 SERVICES,CHIEF FINANCIAL OFFICER,SWISSCOM (SCHWEIZ) AG,438833,109.52,-
BEIS,Met Office,2020-02-21,11 SERVICES,CHIEF FINANCIAL OFFICER,TELEFONICA O2 UK LIMITED,438919,50,778603785
BEIS,Met Office,2020-02-05,11 SERVICES,CHIEF FINANCIAL OFFICER,TELIA FINLAND OYJ,21217,221.72,FI14756079
BEIS,Met Office,2020-02-05,06 ACCOMMODATION,CHIEF FINANCIAL OFFICER,TENNIE FACILITIES PROPERTY MANAGEMENT LTD,438166,207.15,982055803
BEIS,Met Office,2020-02-17,06 ACCOMMODATION,CHIEF FINANCIAL OFFICER,TULLY FARM HOLDINGS T/A CONTRACT SERVICES,438579,71.8,872632707
BEIS,Met Office,2020-02-05,11 SERVICES,CHIEF FINANCIAL OFFICER,University Of Reading,438244,332.66,200012659
BEIS,Met Office,2020-02-27,11 SERVICES,CHIEF FINANCIAL OFFICER,Vodafone Limited,439001,559.03,569953277
BEIS,Met Office,2020-02-27,11 SERVICES,CHIEF FINANCIAL OFFICER,Vodafone Limited,439000,623.97,569953277
BEIS,Met Office,2020-02-28,11 SERVICES,CHIEF FINANCIAL OFFICER,Vodafone Limited,439002,4085.13,569953277
BEIS,Met Office,2020-02-13,04 CONTRACTORS,CHIEF FINANCIAL OFFICER,WA CONSULTANTS LTD,438654,4318.72,876328977
BEIS,Met Office,2020-02-10,04 CONTRACTORS,CHIEF FINANCIAL OFFICER,WA CONSULTANTS LTD,438433,4905,876328977
BEIS,Met Office,2020-02-10,04 CONTRACTORS,CHIEF FINANCIAL OFFICER,WA CONSULTANTS LTD,438437,6981,876328977
BEIS,Met Office,2020-02-10,04 CONTRACTORS,CHIEF FINANCIAL OFFICER,WA CONSULTANTS LTD,438431,8140,876328977
BEIS,Met Office,2020-02-10,04 CONTRACTORS,CHIEF FINANCIAL OFFICER,WA CONSULTANTS LTD,438430,8700,876328977
BEIS,Met Office,2020-02-07,06 ACCOMMODATION,CHIEF FINANCIAL OFFICER,WIRELESS NETWORK DEVELOPMENTS (UK) LTD,438234,149.94,GB277474559
BEIS,Met Office,2020-02-07,11 SERVICES,CHIEF FINANCIAL OFFICER,XEIAD,438219,1452,811321091
BEIS,Met Office,2020-02-05,11 SERVICES,CHIEF FINANCIAL OFFICER,XPEDITE SYSTEMS (UK) LTD,438238,100,599016994
BEIS,Met Office,2020-02-24,03 STAFF COSTS T&S,CORPORATE,Aramark Limited,439028,197.08,GB 168 9515 18
BEIS,Met Office,2020-02-18,05 CONSULTANTS,CORPORATE,BEAMANS LTD,438725,7278.15,656875579
BEIS,Met Office,2020-02-04,11 SERVICES,CORPORATE,BI-DESIGN EUROPE LTD T/A HOME,438160,16301.25,-
BEIS,Met Office,2020-02-21,11 SERVICES,CORPORATE,BRYERS LLP,438825,300,609635917
BEIS,Met Office,2020-02-18,13 MISCELLANEOUS,CORPORATE,DEVON & CORNWALL BUSINESS COUNCIL,438560,600,768969833
BEIS,Met Office,2020-02-27,11 SERVICES,CORPORATE,ECA INTERNATIONAL,439099,963,238549825
BEIS,Met Office,2020-02-12,11 SERVICES,CORPORATE,ENVIRAL LTD,438498,4125,-
BEIS,Met Office,2020-02-10,11 SERVICES,CORPORATE,EQUINITI ICS LTD,438117,-329.33,915967778
BEIS,Met Office,2020-02-26,11 SERVICES,CORPORATE,EQUINITI ICS LTD,439121,70,915967778
BEIS,Met Office,2020-02-10,11 SERVICES,CORPORATE,EQUINITI ICS LTD,438116,316.66,915967778
BEIS,Met Office,2020-02-19,11 SERVICES,CORPORATE,EQUINITI ICS LTD,438231,316.66,915967778
BEIS,Met Office,2020-02-21,11 SERVICES,CORPORATE,EQUINITI ICS LTD,435977,329.33,915967778
BEIS,Met Office,2020-02-10,11 SERVICES,CORPORATE,EQUINITI ICS LTD,438230,6974,915967778
BEIS,Met Office,2020-02-13,11 SERVICES,CORPORATE,ESCOTT HUNT LTD,438620,425,815727127
BEIS,Met Office,2020-02-13,11 SERVICES,CORPORATE,GOVERNMENT LEGAL DEPARTMENT,438580,81.75,888823066
BEIS,Met Office,2020-02-14,11 SERVICES,CORPORATE,HAWK INCENTIVES LTD,438719,6074.25,238839422
BEIS,Met Office,2020-02-20,11 SERVICES,CORPORATE,HAWK INCENTIVES LTD,438950,7602,238839422
BEIS,Met Office,2020-02-10,11 SERVICES,CORPORATE,HAWK INCENTIVES LTD,438276,8804.25,238839422
BEIS,Met Office,2020-02-11,04 CONTRACTORS,CORPORATE,HAYS SPECIALIST RECRUITMENT LTD,438512,244.11,773695871
BEIS,Met Office,2020-02-17,04 CONTRACTORS,CORPORATE,HAYS SPECIALIST RECRUITMENT LTD,438705,266.86,773695871
BEIS,Met Office,2020-02-17,04 CONTRACTORS,CORPORATE,HAYS SPECIALIST RECRUITMENT LTD,438708,268.52,773695871
BEIS,Met Office,2020-02-24,04 CONTRACTORS,CORPORATE,HAYS SPECIALIST RECRUITMENT LTD,438968,366.15,773695871
BEIS,Met Office,2020-02-11,04 CONTRACTORS,CORPORATE,HAYS SPECIALIST RECRUITMENT LTD,438499,640.46,773695871
BEIS,Met Office,2020-02-11,04 CONTRACTORS,CORPORATE,HAYS SPECIALIST RECRUITMENT LTD,438505,640.46,773695871
BEIS,Met Office,2020-02-11,04 CONTRACTORS,CORPORATE,HAYS SPECIALIST RECRUITMENT LTD,438501,653.79,773695871
BEIS,Met Office,2020-02-11,04 CONTRACTORS,CORPORATE,HAYS SPECIALIST RECRUITMENT LTD,438504,658.25,773695871
BEIS,Met Office,2020-02-17,04 CONTRACTORS,CORPORATE,HAYS SPECIALIST RECRUITMENT LTD,438707,658.25,773695871
BEIS,Met Office,2020-02-17,04 CONTRACTORS,CORPORATE,HAYS SPECIALIST RECRUITMENT LTD,438776,658.25,773695871
BEIS,Met Office,2020-02-24,04 CONTRACTORS,CORPORATE,HAYS SPECIALIST RECRUITMENT LTD,438967,658.25,773695871
BEIS,Met Office,2020-02-11,04 CONTRACTORS,CORPORATE,HAYS SPECIALIST RECRUITMENT LTD,438511,676.04,773695871
BEIS,Met Office,2020-02-11,11 SERVICES,CORPORATE,HEALTH MANAGEMENT LTD,438199,393.35,792250621
BEIS,Met Office,2020-02-25,13 MISCELLANEOUS,CORPORATE,HEALTH MANAGEMENT LTD,439031,3201.4,792250621
BEIS,Met Office,2020-02-25,13 MISCELLANEOUS,CORPORATE,HEALTH MANAGEMENT LTD,439030,5550.19,792250621
BEIS,Met Office,2020-02-10,04 CONTRACTORS,CORPORATE,JOBSEEKERS RECRUITMENT SERVICES LTD,438451,1029.71,130 1297 14
BEIS,Met Office,2020-02-17,04 CONTRACTORS,CORPORATE,JOBSEEKERS RECRUITMENT SERVICES LTD,438688,1029.71,130 1297 14
BEIS,Met Office,2020-02-19,04 CONTRACTORS,CORPORATE,JOBSEEKERS RECRUITMENT SERVICES LTD,438884,1029.71,130 1297 14
BEIS,Met Office,2020-02-14,11 SERVICES,CORPORATE,Landmark Information Group Ltd,438721,8190,634509735
BEIS,Met Office,2020-02-14,11 SERVICES,CORPORATE,Landmark Information Group Ltd,438723,10900,634509735
BEIS,Met Office,2020-02-14,11 SERVICES,CORPORATE,Landmark Information Group Ltd,438724,48809.59,634509735
BEIS,Met Office,2020-02-14,11 SERVICES,CORPORATE,Landmark Information Group Ltd,438722,62108,634509735
BEIS,Met Office,2020-02-06,11 SERVICES,CORPORATE,MERKLE UK THREE LTD T/A MERKLE PERISCOPIX,432683,7783.33,843316243
BEIS,Met Office,2020-02-13,11 SERVICES,CORPORATE,MERKLE UK THREE LTD T/A MERKLE PERISCOPIX,438583,8213.33,843316243
BEIS,Met Office,2020-02-19,11 SERVICES,CORPORATE,MILLS AND SONS LTD,438826,706.55,808366053
BEIS,Met Office,2020-02-10,11 SERVICES,CORPORATE,MOUNT CHARLES GROUP LTD,438330,1064.4,517116274
BEIS,Met Office,2020-02-04,11 SERVICES,CORPORATE,MOUNT CHARLES GROUP LTD,438111,1108.2,517116274
BEIS,Met Office,2020-02-19,11 SERVICES,CORPORATE,MOUNT CHARLES GROUP LTD,438800,1465.2,517116274
BEIS,Met Office,2020-02-25,11 SERVICES,CORPORATE,MYCSP LTD,439060,40.37,128754393
BEIS,Met Office,2020-02-05,11 SERVICES,CORPORATE,OPUS PERFORMANCE LTD,438180,2600,831961423
BEIS,Met Office,2020-02-13,04 CONTRACTORS,CORPORATE,QUINTON DAVIES LIMITED,438565,15056.25,291532892
BEIS,Met Office,2020-02-13,11 SERVICES,CORPORATE,REDACTED � PERSONAL DATA,438226,1392,143043312
BEIS,Met Office,2020-02-20,11 SERVICES,CORPORATE,SODEXO MOT SOL UK  LTD (CHILDCARE RECEIPTS),438859,617.08,733644335
BEIS,Met Office,2020-02-10,04 CONTRACTORS,CORPORATE,SOLOS CONSULTANTS LTD,438406,7265.83,812035476
BEIS,Met Office,2020-02-10,04 CONTRACTORS,CORPORATE,SOLOS CONSULTANTS LTD,438397,7995.6,812035476
BEIS,Met Office,2020-02-10,04 CONTRACTORS,CORPORATE,SOLOS CONSULTANTS LTD,438460,8925.2,812035476
BEIS,Met Office,2020-02-10,04 CONTRACTORS,CORPORATE,SOLOS CONSULTANTS LTD,438390,9991.6,812035476
BEIS,Met Office,2020-02-06,11 SERVICES,CORPORATE,SWANTECH LOGISTICS LTD,438206,177.73,769332401
BEIS,Met Office,2020-02-06,11 SERVICES,CORPORATE,SWANTECH LOGISTICS LTD,438157,2312,769332401
BEIS,Met Office,2020-02-17,11 SERVICES,CORPORATE,UNIVERSITY OF EXETER,438615,2121.8,142047795
BEIS,Met Office,2020-02-12,11 SERVICES,GOVERNMENT SERVICES,ACCELERATION EMARKETING,438572,3334.85,848940776
BEIS,Met Office,2020-02-05,11 SERVICES,GOVERNMENT SERVICES,ADOPSTAR,438232,1250,115036848
BEIS,Met Office,2020-02-06,11 SERVICES,GOVERNMENT SERVICES,AECOM INFRASTRUCTURE & ENVIRONMENT UK LTD,437967,1125,611853162
BEIS,Met Office,2020-02-14,11 SERVICES,GOVERNMENT SERVICES,BBC MEDIA ACTION,438692,86461,GB333289454
BEIS,Met Office,2020-02-18,11 SERVICES,GOVERNMENT SERVICES,BEIS,438817,509110,888825550
BEIS,Met Office,2020-02-07,11 SERVICES,GOVERNMENT SERVICES,British Council,438325,5120.44,GB 238 767421
BEIS,Met Office,2020-02-07,11 SERVICES,GOVERNMENT SERVICES,British Council,438326,5947.44,GB 238 767421
BEIS,Met Office,2020-02-07,11 SERVICES,GOVERNMENT SERVICES,British Council,438324,44915.13,GB 238 767421
BEIS,Met Office,2020-02-11,11 SERVICES,GOVERNMENT SERVICES,CACI LTD,438513,1000,380609841
BEIS,Met Office,2020-02-11,11 SERVICES,GOVERNMENT SERVICES,CACI LTD,438513,19400.26,380609841
BEIS,Met Office,2020-02-11,11 SERVICES,GOVERNMENT SERVICES,CACI LTD,438513,27049.1,380609841
BEIS,Met Office,2020-02-03,11 SERVICES,GOVERNMENT SERVICES,Cgi It Uk Limited,438025,434.4,232615194
BEIS,Met Office,2020-02-03,11 SERVICES,GOVERNMENT SERVICES,Cgi It Uk Limited,438024,4223.11,232615194
BEIS,Met Office,2020-02-17,11 SERVICES,GOVERNMENT SERVICES,Cgi It Uk Limited,438694,165520,232615194
BEIS,Met Office,2020-02-21,11 SERVICES,GOVERNMENT SERVICES,DBS FINANCE RECEIPTS CTS,438946,12185.45,888805068
BEIS,Met Office,2020-02-14,11 SERVICES,GOVERNMENT SERVICES,DBS FINANCE RECEIPTS CTS,438096,13122.8,888805068
BEIS,Met Office,2020-02-27,11 SERVICES,GOVERNMENT SERVICES,DJS RESEARCH LIMITED,438891,9894,775718779
BEIS,Met Office,2020-02-10,11 SERVICES,GOVERNMENT SERVICES,EDSON TIGER LTD,438113,275,166910983
BEIS,Met Office,2020-02-05,11 SERVICES,GOVERNMENT SERVICES,Environment Canada,437902,1602.1,-
BEIS,Met Office,2020-02-25,11 SERVICES,GOVERNMENT SERVICES,EPIMORPHICS LTD,439017,25000,980295592
BEIS,Met Office,2020-02-05,11 SERVICES,GOVERNMENT SERVICES,Eumetsat,21212,2529.11,VE
BEIS,Met Office,2020-02-12,11 SERVICES,GOVERNMENT SERVICES,Eumetsat,21202,5058.21,VE
BEIS,Met Office,2020-02-12,11 SERVICES,GOVERNMENT SERVICES,Eumetsat,21203,5058.21,VE
BEIS,Met Office,2020-02-13,11 SERVICES,GOVERNMENT SERVICES,FCO,438575,41.01,888813560
BEIS,Met Office,2020-02-04,11 SERVICES,GOVERNMENT SERVICES,GEOSMART INFORMATION LTD,438165,5833,172271519
BEIS,Met Office,2020-02-19,11 SERVICES,GOVERNMENT SERVICES,ICIMOD,9699,63274.03,-
BEIS,Met Office,2020-02-12,11 SERVICES,GOVERNMENT SERVICES,IGAD CLIMATE PREDICTION & APPLICATIONS CNTR,438215,88354.29,-
BEIS,Met Office,2020-02-12,11 SERVICES,GOVERNMENT SERVICES,IGAD CLIMATE PREDICTION & APPLICATIONS CNTR,438233,247916.86,-
BEIS,Met Office,2020-02-26,11 SERVICES,GOVERNMENT SERVICES,INFORKOMM MEDIA SERVICES LIMITED,438931,1954.12,0134119J
BEIS,Met Office,2020-02-12,08 SOFTWARE LICENCES,GOVERNMENT SERVICES,"INTELLOVATIONS, LLC",9650,112.25,-
BEIS,Met Office,2020-02-05,08 SOFTWARE LICENCES,GOVERNMENT SERVICES,"INTELLOVATIONS, LLC",9686,1415.57,-
BEIS,Met Office,2020-02-26,04 CONTRACTORS,GOVERNMENT SERVICES,JOBSEEKERS RECRUITMENT SERVICES LTD,439084,516.38,130 1297 14
BEIS,Met Office,2020-02-27,04 CONTRACTORS,GOVERNMENT SERVICES,JOBSEEKERS RECRUITMENT SERVICES LTD,439083,516.64,130 1297 14
BEIS,Met Office,2020-02-18,04 CONTRACTORS,GOVERNMENT SERVICES,JOBSEEKERS RECRUITMENT SERVICES LTD,438689,593.01,130 1297 14
BEIS,Met Office,2020-02-10,04 CONTRACTORS,GOVERNMENT SERVICES,JOBSEEKERS RECRUITMENT SERVICES LTD,438452,626.18,130 1297 14
BEIS,Met Office,2020-02-10,04 CONTRACTORS,GOVERNMENT SERVICES,JOBSEEKERS RECRUITMENT SERVICES LTD,438448,640.84,130 1297 14
BEIS,Met Office,2020-02-19,04 CONTRACTORS,GOVERNMENT SERVICES,JOBSEEKERS RECRUITMENT SERVICES LTD,438883,664.89,130 1297 14
BEIS,Met Office,2020-02-17,04 CONTRACTORS,GOVERNMENT SERVICES,JOBSEEKERS RECRUITMENT SERVICES LTD,438690,677.03,130 1297 14
BEIS,Met Office,2020-02-10,04 CONTRACTORS,GOVERNMENT SERVICES,JOBSEEKERS RECRUITMENT SERVICES LTD,438454,851,130 1297 14
BEIS,Met Office,2020-02-27,04 CONTRACTORS,GOVERNMENT SERVICES,JOBSEEKERS RECRUITMENT SERVICES LTD,439085,851,130 1297 14
BEIS,Met Office,2020-02-10,04 CONTRACTORS,GOVERNMENT SERVICES,JOBSEEKERS RECRUITMENT SERVICES LTD,438450,860.63,130 1297 14
BEIS,Met Office,2020-02-19,04 CONTRACTORS,GOVERNMENT SERVICES,JOBSEEKERS RECRUITMENT SERVICES LTD,438882,860.63,130 1297 14
BEIS,Met Office,2020-02-19,04 CONTRACTORS,GOVERNMENT SERVICES,JOBSEEKERS RECRUITMENT SERVICES LTD,438885,874,130 1297 14
BEIS,Met Office,2020-02-17,04 CONTRACTORS,GOVERNMENT SERVICES,JOBSEEKERS RECRUITMENT SERVICES LTD,438686,879.75,130 1297 14
BEIS,Met Office,2020-02-10,04 CONTRACTORS,GOVERNMENT SERVICES,JOBSEEKERS RECRUITMENT SERVICES LTD,438453,937.25,130 1297 14
BEIS,Met Office,2020-02-26,04 CONTRACTORS,GOVERNMENT SERVICES,JOBSEEKERS RECRUITMENT SERVICES LTD,439086,1029.71,130 1297 14
BEIS,Met Office,2020-02-17,04 CONTRACTORS,GOVERNMENT SERVICES,JOBSEEKERS RECRUITMENT SERVICES LTD,438687,1043.63,130 1297 14
BEIS,Met Office,2020-02-19,04 CONTRACTORS,GOVERNMENT SERVICES,JOBSEEKERS RECRUITMENT SERVICES LTD,438886,1043.63,130 1297 14
BEIS,Met Office,2020-02-26,11 SERVICES,GOVERNMENT SERVICES,KENYA METEOROLOGICAL DEPARTMENT,438952,498.8,-
BEIS,Met Office,2020-02-12,11 SERVICES,GOVERNMENT SERVICES,KENYA METEOROLOGICAL DEPARTMENT,437650,1781.05,-
BEIS,Met Office,2020-02-26,11 SERVICES,GOVERNMENT SERVICES,KENYA METEOROLOGICAL DEPARTMENT,438940,4745.14,-
BEIS,Met Office,2020-02-19,11 SERVICES,GOVERNMENT SERVICES,MACITECHSY SOLUTIONS,9703,2794.21,-
BEIS,Met Office,2020-02-17,13 MISCELLANEOUS,GOVERNMENT SERVICES,MILLS AND SONS LTD,438824,229.05,808366053
BEIS,Met Office,2020-02-12,11 SERVICES,GOVERNMENT SERVICES,NORWEGIAN METEOROLOGICAL INST,21189,22951.73,NO971274042MVA
BEIS,Met Office,2020-02-26,11 SERVICES,GOVERNMENT SERVICES,NORWEGIAN REFUGEE COUNCIL,439133,-40606.45,-
BEIS,Met Office,2020-02-26,11 SERVICES,GOVERNMENT SERVICES,NORWEGIAN REFUGEE COUNCIL,438179,40606.45,-
BEIS,Met Office,2020-02-26,11 SERVICES,GOVERNMENT SERVICES,NORWEGIAN REFUGEE COUNCIL,439131,40606.45,-
BEIS,Met Office,2020-02-24,08 SOFTWARE LICENCES,GOVERNMENT SERVICES,PRESENTATION CARTOGRAPHY LTD,438996,2250,-
BEIS,Met Office,2020-02-13,11 SERVICES,GOVERNMENT SERVICES,QA LTD,437138,3390,864455303
BEIS,Met Office,2020-02-26,08 SOFTWARE LICENCES,GOVERNMENT SERVICES,QUESTBACK AS,438064,500,919005242
BEIS,Met Office,2020-02-25,06 ACCOMMODATION,GOVERNMENT SERVICES,R C PERRY,438987,500,-
BEIS,Met Office,2020-02-19,03 STAFF COSTS T&S,GOVERNMENT SERVICES,REDACTED � PERSONAL DATA,9702,1494.12,-
BEIS,Met Office,2020-02-12,11 SERVICES,GOVERNMENT SERVICES,REDACTED � PERSONAL DATA,437092,8000,-
BEIS,Met Office,2020-02-24,11 SERVICES,GOVERNMENT SERVICES,REDACTED � PERSONAL DATA,438991,15000,N/A
BEIS,Met Office,2020-02-05,11 SERVICES,GOVERNMENT SERVICES,RESURGENCE URBAN RESILIENCE TRUST,438178,-4144,259524184
BEIS,Met Office,2020-02-05,11 SERVICES,GOVERNMENT SERVICES,RESURGENCE URBAN RESILIENCE TRUST,437646,40362,259524184
BEIS,Met Office,2020-02-07,11 SERVICES,GOVERNMENT SERVICES,ROWE IT LTD,438264,1836.25,924964394
BEIS,Met Office,2020-02-12,11 SERVICES,GOVERNMENT SERVICES,ROWE IT LTD,438518,9520,924964394
BEIS,Met Office,2020-02-11,11 SERVICES,GOVERNMENT SERVICES,ROWE IT LTD,438519,14057.5,924964394
BEIS,Met Office,2020-02-12,11 SERVICES,GOVERNMENT SERVICES,SCIENCE & TECHNOLOGY FACILITIES COUNCIL,438210,20000,618367325
BEIS,Met Office,2020-02-18,11 SERVICES,GOVERNMENT SERVICES,SCIENCE & TECHNOLOGY FACILITIES COUNCIL,438546,25000,618367325
BEIS,Met Office,2020-02-10,04 CONTRACTORS,GOVERNMENT SERVICES,SOLOS CONSULTANTS LTD,438381,4468.46,812035476
BEIS,Met Office,2020-02-10,04 CONTRACTORS,GOVERNMENT SERVICES,SOLOS CONSULTANTS LTD,438387,8000,812035476
BEIS,Met Office,2020-02-10,04 CONTRACTORS,GOVERNMENT SERVICES,SOLOS CONSULTANTS LTD,438404,10920,812035476
BEIS,Met Office,2020-02-12,11 SERVICES,GOVERNMENT SERVICES,SOUTHSOUTHNORTH,438245,57866.86,4790219721
BEIS,Met Office,2020-02-12,11 SERVICES,GOVERNMENT SERVICES,UKRI,435407,11893.75,GB287461957
BEIS,Met Office,2020-02-11,11 SERVICES,GOVERNMENT SERVICES,University Of Leeds,438273,34286,613451470
BEIS,Met Office,2020-02-10,11 SERVICES,GOVERNMENT SERVICES,University Of Leeds,438274,64000,613451470
BEIS,Met Office,2020-02-11,11 SERVICES,GOVERNMENT SERVICES,University Of Leeds,438275,104000,613451470
BEIS,Met Office,2020-02-06,11 SERVICES,GOVERNMENT SERVICES,VAISALA LTD,436625,17987.61,336100011
BEIS,Met Office,2020-02-24,04 CONTRACTORS,GOVERNMENT SERVICES,WA CONSULTANTS LTD,439018,18652,876328977
BEIS,Met Office,2020-02-13,03 STAFF COSTS T&S,OPERATIONS,AIRPORT CAR RENTALS LTD,438621,320,-
BEIS,Met Office,2020-02-13,11 SERVICES,OPERATIONS,ALPHABET (GB) LTD,431707,-389,572417244
BEIS,Met Office,2020-02-20,12 INTERNATIONAL,OPERATIONS,APPLIED SATELLITE TECHNOLOGY SYSTEMS LTD,438895,32.4,720108683
BEIS,Met Office,2020-02-24,11 SERVICES,OPERATIONS,APPLIED SATELLITE TECHNOLOGY SYSTEMS LTD,438893,32.43,720108683
BEIS,Met Office,2020-02-21,11 SERVICES,OPERATIONS,APPLIED SATELLITE TECHNOLOGY SYSTEMS LTD,438900,33.83,720108683
BEIS,Met Office,2020-02-24,11 SERVICES,OPERATIONS,APPLIED SATELLITE TECHNOLOGY SYSTEMS LTD,438901,33.83,720108683
BEIS,Met Office,2020-02-21,11 SERVICES,OPERATIONS,APPLIED SATELLITE TECHNOLOGY SYSTEMS LTD,438902,33.83,720108683
BEIS,Met Office,2020-02-20,11 SERVICES,OPERATIONS,APPLIED SATELLITE TECHNOLOGY SYSTEMS LTD,438899,134.87,720108683
BEIS,Met Office,2020-02-21,11 SERVICES,OPERATIONS,APPLIED SATELLITE TECHNOLOGY SYSTEMS LTD,438898,173.74,720108683
BEIS,Met Office,2020-02-21,11 SERVICES,OPERATIONS,APPLIED SATELLITE TECHNOLOGY SYSTEMS LTD,438897,298.1,720108683
BEIS,Met Office,2020-02-25,11 SERVICES,OPERATIONS,APPLIED SATELLITE TECHNOLOGY SYSTEMS LTD,438894,9646.59,720108683
BEIS,Met Office,2020-02-27,11 SERVICES,OPERATIONS,APPLIED SATELLITE TECHNOLOGY SYSTEMS LTD,436796,10141.72,720108683
BEIS,Met Office,2020-02-10,11 SERVICES,OPERATIONS,ASPIRE EUROPE LTD,438256,3031.39,841124953
BEIS,Met Office,2020-02-24,11 SERVICES,OPERATIONS,BARSC,438988,60,-
BEIS,Met Office,2020-02-24,11 SERVICES,OPERATIONS,BOC LTD,438571,-95.71,226556555
BEIS,Met Office,2020-02-05,11 SERVICES,OPERATIONS,BOC LTD,438174,10091.26,226556555
BEIS,Met Office,2020-02-24,11 SERVICES,OPERATIONS,BOC LTD,437005,18384.47,226556555
BEIS,Met Office,2020-02-04,STOCK,OPERATIONS,Campbell Scientific Ltd,438110,15,428453933
BEIS,Met Office,2020-02-10,INFORMATION TECHNOLOGY,OPERATIONS,Campbell Scientific Ltd,438211,76,428453933
BEIS,Met Office,2020-02-10,INFORMATION TECHNOLOGY,OPERATIONS,Campbell Scientific Ltd,438198,126,428453933
BEIS,Met Office,2020-02-10,INFORMATION TECHNOLOGY,OPERATIONS,Campbell Scientific Ltd,438198,1035,428453933
BEIS,Met Office,2020-02-10,INFORMATION TECHNOLOGY,OPERATIONS,Campbell Scientific Ltd,438211,1035,428453933
BEIS,Met Office,2020-02-04,STOCK,OPERATIONS,Campbell Scientific Ltd,438110,1827,428453933
BEIS,Met Office,2020-02-10,INFORMATION TECHNOLOGY,OPERATIONS,Campbell Scientific Ltd,438198,10260,428453933
BEIS,Met Office,2020-02-10,INFORMATION TECHNOLOGY,OPERATIONS,Campbell Scientific Ltd,438211,10260,428453933
BEIS,Met Office,2020-02-10,INFORMATION TECHNOLOGY,OPERATIONS,Campbell Scientific Ltd,438198,32921.88,428453933
BEIS,Met Office,2020-02-10,INFORMATION TECHNOLOGY,OPERATIONS,Campbell Scientific Ltd,438211,32921.88,428453933
BEIS,Met Office,2020-02-12,03 STAFF COSTS T&S,OPERATIONS,CARTUS LTD,438612,107.14,768489458
BEIS,Met Office,2020-02-12,03 STAFF COSTS T&S,OPERATIONS,CARTUS LTD,438592,110,768489458
BEIS,Met Office,2020-02-12,03 STAFF COSTS T&S,OPERATIONS,CARTUS LTD,438594,200,768489458
BEIS,Met Office,2020-02-12,03 STAFF COSTS T&S,OPERATIONS,CARTUS LTD,438609,200,768489458
BEIS,Met Office,2020-02-27,03 STAFF COSTS T&S,OPERATIONS,CARTUS LTD,436575,274,768489458
BEIS,Met Office,2020-02-12,03 STAFF COSTS T&S,OPERATIONS,CARTUS LTD,438616,274,768489458
BEIS,Met Office,2020-02-18,03 STAFF COSTS T&S,OPERATIONS,CARTUS LTD,438591,736.17,768489458
BEIS,Met Office,2020-02-27,03 STAFF COSTS T&S,OPERATIONS,CARTUS LTD,436579,1430,768489458
BEIS,Met Office,2020-02-12,03 STAFF COSTS T&S,OPERATIONS,CARTUS LTD,438590,1453,768489458
BEIS,Met Office,2020-02-05,11 SERVICES,OPERATIONS,CATALYST IT,438228,50,978169262
BEIS,Met Office,2020-02-05,11 SERVICES,OPERATIONS,CATALYST IT,438228,340,978169262
BEIS,Met Office,2020-02-05,11 SERVICES,OPERATIONS,CATALYST IT,438228,846.67,978169262
BEIS,Met Office,2020-02-05,03 STAFF COSTS T&S,OPERATIONS,CHARLIE'S TRAVEL LTD,438220,565,783848277
BEIS,Met Office,2020-02-05,03 STAFF COSTS T&S,OPERATIONS,CHARLIE'S TRAVEL LTD,438220,608.5,783848277
BEIS,Met Office,2020-02-19,10 EQUIPMENT MAINTENANCE,OPERATIONS,CIMEL ELECTRONIQUE,21231,100.99,FR89662017201
BEIS,Met Office,2020-02-20,11 SERVICES,OPERATIONS,CLOUDREACH EUROPE LIMITED,438971,7025.85,978187168
BEIS,Met Office,2020-02-05,05 CONSULTANTS,OPERATIONS,CMC PARTNERSHIP CONSULTANCY LTD,438229,1752,305803330
BEIS,Met Office,2020-02-07,05 CONSULTANTS,OPERATIONS,CMC PARTNERSHIP CONSULTANCY LTD,438333,18900,305803330
BEIS,Met Office,2020-02-13,12 INTERNATIONAL,OPERATIONS,CROWN AGENTS BANK,438653,29225,-
BEIS,Met Office,2020-02-05,07 EQUIPMENT,OPERATIONS,DATA BUOY INSTRUMENTATION LLC,9683,27852.38,-
BEIS,Met Office,2020-02-07,10 EQUIPMENT MAINTENANCE,OPERATIONS,DOTSTAR DESIGN,438334,680,-
BEIS,Met Office,2020-02-17,11 SERVICES,OPERATIONS,DRIVE CREATIVE STUDIO LTD,438788,380,167656860
BEIS,Met Office,2020-02-27,11 SERVICES,OPERATIONS,DRIVE CREATIVE STUDIO LTD,439029,420,167656860
BEIS,Met Office,2020-02-10,11 SERVICES,OPERATIONS,DRIVE CREATIVE STUDIO LTD,438331,2170,167656860
BEIS,Met Office,2020-02-19,12 INTERNATIONAL,OPERATIONS,ECMWF,436944,-1213.13,NOTVATREG
BEIS,Met Office,2020-02-13,11 SERVICES,OPERATIONS,EQUINOX INSTRUMENTS LTD,430549,100,865954274
BEIS,Met Office,2020-02-13,10 EQUIPMENT MAINTENANCE,OPERATIONS,EQUINOX INSTRUMENTS LTD,430549,765.6,865954274
BEIS,Met Office,2020-02-13,10 EQUIPMENT MAINTENANCE,OPERATIONS,EQUINOX INSTRUMENTS LTD,430549,1240.8,865954274
BEIS,Met Office,2020-02-13,10 EQUIPMENT MAINTENANCE,OPERATIONS,EQUINOX INSTRUMENTS LTD,430549,2026.2,865954274
BEIS,Met Office,2020-02-13,10 EQUIPMENT MAINTENANCE,OPERATIONS,EQUINOX INSTRUMENTS LTD,430549,2079,865954274
BEIS,Met Office,2020-02-26,11 SERVICES,OPERATIONS,"EUTELSAT MADERIA, UNIPESSOAL LDA",21237,2160.85,PT511283733
BEIS,Met Office,2020-02-20,11 SERVICES,OPERATIONS,"EUTELSAT, S.A.",21249,-12055.51,-
BEIS,Met Office,2020-02-12,11 SERVICES,OPERATIONS,"EUTELSAT, S.A.",21191,3762.36,-
BEIS,Met Office,2020-02-17,03 STAFF COSTS T&S,OPERATIONS,FALKLAND ISLAND COMPANY LTD,438802,700,N/A
BEIS,Met Office,2020-02-17,03 STAFF COSTS T&S,OPERATIONS,FALKLAND ISLAND COMPANY LTD,438803,700,N/A
BEIS,Met Office,2020-02-27,07 EQUIPMENT,OPERATIONS,GAMMA TELECOM LTD,438611,24.41,823820344
BEIS,Met Office,2020-02-27,07 EQUIPMENT,OPERATIONS,GAMMA TELECOM LTD,438611,696.06,823820344
BEIS,Met Office,2020-02-27,07 EQUIPMENT,OPERATIONS,GAMMA TELECOM LTD,438611,2260.1,823820344
BEIS,Met Office,2020-02-27,07 EQUIPMENT,OPERATIONS,GAMMA TELECOM LTD,438611,5250,823820344
BEIS,Met Office,2020-02-12,10 EQUIPMENT MAINTENANCE,OPERATIONS,Goldisc Limited,438514,8575,861294416
BEIS,Met Office,2020-02-07,11 SERVICES,OPERATIONS,INMARSAT SOLUTIONS (CANADA) INC,438240,192,766144223
BEIS,Met Office,2020-02-07,11 SERVICES,OPERATIONS,INMARSAT SOLUTIONS (CANADA) INC,438225,1143.23,766144223
BEIS,Met Office,2020-02-05,11 SERVICES,OPERATIONS,ISOTHERMAL TECHNOLOGY LTD,438208,15,325108979
BEIS,Met Office,2020-02-05,10 EQUIPMENT MAINTENANCE,OPERATIONS,ISOTHERMAL TECHNOLOGY LTD,438208,321,325108979
BEIS,Met Office,2020-02-26,04 CONTRACTORS,OPERATIONS,JOBSEEKERS RECRUITMENT SERVICES LTD,439087,403.16,130 1297 14
BEIS,Met Office,2020-02-10,04 CONTRACTORS,OPERATIONS,JOBSEEKERS RECRUITMENT SERVICES LTD,438449,671.4,130 1297 14
BEIS,Met Office,2020-02-24,04 CONTRACTORS,OPERATIONS,JOBSEEKERS RECRUITMENT SERVICES LTD,439012,699.59,130 1297 14
BEIS,Met Office,2020-02-19,04 CONTRACTORS,OPERATIONS,JOBSEEKERS RECRUITMENT SERVICES LTD,438887,865.6,130 1297 14
BEIS,Met Office,2020-02-07,07 EQUIPMENT,OPERATIONS,LEMO (UK) LTD,438115,50,193269240
BEIS,Met Office,2020-02-07,07 EQUIPMENT,OPERATIONS,LEMO (UK) LTD,438115,338.2,193269240
BEIS,Met Office,2020-02-07,07 EQUIPMENT,OPERATIONS,LEMO (UK) LTD,438115,960.6,193269240
BEIS,Met Office,2020-02-07,07 EQUIPMENT,OPERATIONS,LEMO (UK) LTD,438115,1342.8,193269240
BEIS,Met Office,2020-02-07,07 EQUIPMENT,OPERATIONS,LEMO (UK) LTD,438115,2195,193269240
BEIS,Met Office,2020-02-07,07 EQUIPMENT,OPERATIONS,LEMO (UK) LTD,438115,2229.8,193269240
BEIS,Met Office,2020-02-07,07 EQUIPMENT,OPERATIONS,LEMO (UK) LTD,438115,2384.8,193269240
BEIS,Met Office,2020-02-12,07 EQUIPMENT,OPERATIONS,M C ENGINEERING SERVICES,438517,87.84,813172066
BEIS,Met Office,2020-02-12,07 EQUIPMENT,OPERATIONS,M C ENGINEERING SERVICES,438517,132.3,813172066
BEIS,Met Office,2020-02-05,12 INTERNATIONAL,OPERATIONS,MACITECHSY SOLUTIONS,438236,1508.7,-
BEIS,Met Office,2020-02-12,12 INTERNATIONAL,OPERATIONS,MET SERVICE OF NEW ZEALAND LTD T/A METSERVICE,9695,1469.14,-
BEIS,Met Office,2020-02-19,11 SERVICES,OPERATIONS,Meteoswiss,438349,118.68,-
BEIS,Met Office,2020-02-24,11 SERVICES,OPERATIONS,MOMENTUM INCORPORATED,438994,1600,598958541
BEIS,Met Office,2020-02-24,11 SERVICES,OPERATIONS,MORSAFE LTD,438993,950,856010741
BEIS,Met Office,2020-02-24,11 SERVICES,OPERATIONS,MORSAFE LTD,438993,2500,856010741
BEIS,Met Office,2020-02-03,10 EQUIPMENT MAINTENANCE,OPERATIONS,NPL Management Ltd,438070,4242.03,207523388
BEIS,Met Office,2020-02-19,11 SERVICES,OPERATIONS,NSSL GLOBAL LTD,9670,46.27,725151948
BEIS,Met Office,2020-02-19,11 SERVICES,OPERATIONS,NSSL GLOBAL LTD,9671,46.27,725151948
BEIS,Met Office,2020-02-12,11 SERVICES,OPERATIONS,OLD FROG LTD,438461,2820,642591532
BEIS,Met Office,2020-02-20,10 EQUIPMENT MAINTENANCE,OPERATIONS,Oldbaum Services Ltd,438892,125,857145996
BEIS,Met Office,2020-02-20,10 EQUIPMENT MAINTENANCE,OPERATIONS,Oldbaum Services Ltd,438892,500,857145996
BEIS,Met Office,2020-02-20,10 EQUIPMENT MAINTENANCE,OPERATIONS,Oldbaum Services Ltd,438892,3250,857145996
BEIS,Met Office,2020-02-11,04 CONTRACTORS,OPERATIONS,OUTSOURCE UK LIMITED,438551,7500,576118722
BEIS,Met Office,2020-02-12,11 SERVICES,OPERATIONS,PETER GOSS TRADING AS GOSS JOINERY,438170,533,941646220
BEIS,Met Office,2020-02-04,06 ACCOMMODATION,OPERATIONS,PETER GOSS TRADING AS GOSS JOINERY,434724,3650.99,941646220
BEIS,Met Office,2020-02-25,04 CONTRACTORS,OPERATIONS,QUALSERV CONSULTING LTD,439038,6501.78,719067718
BEIS,Met Office,2020-02-24,04 CONTRACTORS,OPERATIONS,QUALSERV CONSULTING LTD,439019,9000,719067718
BEIS,Met Office,2020-02-19,11 SERVICES,OPERATIONS,RIGNET UK LTD,438861,4280,875299075
BEIS,Met Office,2020-02-19,11 SERVICES,OPERATIONS,RIGNET UK LTD,438861,4280,875299075
BEIS,Met Office,2020-02-19,10 EQUIPMENT MAINTENANCE,OPERATIONS,RIGNET UK LTD,438861,10365,875299075
BEIS,Met Office,2020-02-12,11 SERVICES,OPERATIONS,ROWE IT LTD,438520,9255,924964394
BEIS,Met Office,2020-02-05,11 SERVICES,OPERATIONS,ROWE IT LTD,438269,16907.31,924964394
BEIS,Met Office,2020-02-05,11 SERVICES,OPERATIONS,ROWE IT LTD,438263,18138.75,924964394
BEIS,Met Office,2020-02-12,11 SERVICES,OPERATIONS,ROWE IT LTD,438521,33096.25,924964394
BEIS,Met Office,2020-02-14,13 MISCELLANEOUS,OPERATIONS,ROYAL MET SOCIETY,438613,100,-
BEIS,Met Office,2020-02-21,07 EQUIPMENT,OPERATIONS,RYOBE3D,438990,1313.99,-
BEIS,Met Office,2020-02-13,11 SERVICES,OPERATIONS,SKILLTEC LIMITED,436837,595,909833105
BEIS,Met Office,2020-02-13,11 SERVICES,OPERATIONS,SKILLTEC LIMITED,436838,595,909833105
BEIS,Met Office,2020-02-13,11 SERVICES,OPERATIONS,SKILLTEC LIMITED,436446,695,909833105
BEIS,Met Office,2020-02-05,11 SERVICES,OPERATIONS,SOFTCAT LTD,438216,481.86,491848503
BEIS,Met Office,2020-02-17,11 SERVICES,OPERATIONS,SOFTWIRE TECHNOLOGY LIMITED,438804,2520,752 1253 57
BEIS,Met Office,2020-02-10,04 CONTRACTORS,OPERATIONS,SOLOS CONSULTANTS LTD,438401,1747.2,812035476
BEIS,Met Office,2020-02-10,04 CONTRACTORS,OPERATIONS,SOLOS CONSULTANTS LTD,438396,6678,812035476
BEIS,Met Office,2020-02-10,04 CONTRACTORS,OPERATIONS,SOLOS CONSULTANTS LTD,438382,6792.4,812035476
BEIS,Met Office,2020-02-10,04 CONTRACTORS,OPERATIONS,SOLOS CONSULTANTS LTD,438402,9500,812035476
BEIS,Met Office,2020-02-05,12 INTERNATIONAL,OPERATIONS,SPREP,9678,49736.4,-
BEIS,Met Office,2020-02-19,07 EQUIPMENT,OPERATIONS,SWALE TECHNOLOGIES LTD,9685,271838.64,530846451
BEIS,Met Office,2020-02-13,12 INTERNATIONAL,OPERATIONS,SWANTECH LOGISTICS LTD,438618,150.78,769332401
BEIS,Met Office,2020-02-27,11 SERVICES,OPERATIONS,Trinity House,437664,5860.87,243120414
BEIS,Met Office,2020-02-10,12 INTERNATIONAL,OPERATIONS,TRIPOS CONSULTANTS,438464,3271.03,610652671
BEIS,Met Office,2020-02-17,11 SERVICES,OPERATIONS,UNIVERSITY OF EXETER,438615,2121.8,142047795
BEIS,Met Office,2020-02-19,STOCK,OPERATIONS,VAISALA OYJ,21195,1367.64,FI01244162
BEIS,Met Office,2020-02-10,04 CONTRACTORS,OPERATIONS,WA CONSULTANTS LTD,438440,11495,876328977
BEIS,Met Office,2020-02-12,11 SERVICES,OPERATIONS,WORLDPAY LTD,438562,22.55,991280207
BEIS,Met Office,2020-02-07,PLANT AND EQUIPMENT,OPERATIONS,XYLEM ANALYTICS UK LIMITED,438262,16.68,828197985
BEIS,Met Office,2020-02-07,PLANT AND EQUIPMENT,OPERATIONS,XYLEM ANALYTICS UK LIMITED,438262,25,828197985
BEIS,Met Office,2020-02-07,PLANT AND EQUIPMENT,OPERATIONS,XYLEM ANALYTICS UK LIMITED,438262,30.39,828197985
BEIS,Met Office,2020-02-07,PLANT AND EQUIPMENT,OPERATIONS,XYLEM ANALYTICS UK LIMITED,438262,174.75,828197985
BEIS,Met Office,2020-02-07,PLANT AND EQUIPMENT,OPERATIONS,XYLEM ANALYTICS UK LIMITED,438262,288.39,828197985
BEIS,Met Office,2020-02-07,PLANT AND EQUIPMENT,OPERATIONS,XYLEM ANALYTICS UK LIMITED,438262,53790,828197985
BEIS,Met Office,2020-02-05,11 SERVICES,OPERATIONS,YOUNG CALIBRATION LIMITED,438167,10,673900720
BEIS,Met Office,2020-02-18,11 SERVICES,OPERATIONS,YOUNG CALIBRATION LIMITED,438819,10,673900720
BEIS,Met Office,2020-02-18,10 EQUIPMENT MAINTENANCE,OPERATIONS,YOUNG CALIBRATION LIMITED,438819,1440,673900720
BEIS,Met Office,2020-02-05,10 EQUIPMENT MAINTENANCE,OPERATIONS,YOUNG CALIBRATION LIMITED,438167,2400,673900720
BEIS,Met Office,2020-02-10,CYCLESCHEME,OTHER,CYCLESCHEME LTD,438466,418.33,850403556
BEIS,Met Office,2020-02-10,CYCLESCHEME,OTHER,CYCLESCHEME LTD,438467,716.67,850403556
BEIS,Met Office,2020-02-20,TRADE CREDITORS,OTHER,NATWEST COMMERCIAL CARDS DIVISION,438916,188814.57,N/A
BEIS,Met Office,2020-02-05,13 MISCELLANEOUS,SCIENCE,AB MULTIMEDIA LTD,438161,50,849333502
BEIS,Met Office,2020-02-07,13 MISCELLANEOUS,SCIENCE,AB MULTIMEDIA LTD,437451,300,849333502
BEIS,Met Office,2020-02-07,13 MISCELLANEOUS,SCIENCE,AB MULTIMEDIA LTD,437460,525,849333502
BEIS,Met Office,2020-02-06,11 SERVICES,SCIENCE,CRANFIELD AEROSPACE SOLUTIONS LTD,438332,51043,608596509
BEIS,Met Office,2020-02-07,03 STAFF COSTS T&S,SCIENCE,FRANCIS CLARK LLP,433415,2150,855910212
BEIS,Met Office,2020-02-07,03 STAFF COSTS T&S,SCIENCE,FRANCIS CLARK LLP,437708,3500,855910212
BEIS,Met Office,2020-02-11,04 CONTRACTORS,SCIENCE,HAYS SPECIALIST RECRUITMENT LTD,438503,460.55,773695871
BEIS,Met Office,2020-02-10,04 CONTRACTORS,SCIENCE,HAYS SPECIALIST RECRUITMENT LTD,438386,558.7,773695871
BEIS,Met Office,2020-02-10,04 CONTRACTORS,SCIENCE,HAYS SPECIALIST RECRUITMENT LTD,438391,558.7,773695871
BEIS,Met Office,2020-02-10,04 CONTRACTORS,SCIENCE,HAYS SPECIALIST RECRUITMENT LTD,438394,573.8,773695871
BEIS,Met Office,2020-02-17,04 CONTRACTORS,SCIENCE,HAYS SPECIALIST RECRUITMENT LTD,438706,581.35,773695871
BEIS,Met Office,2020-02-24,04 CONTRACTORS,SCIENCE,HAYS SPECIALIST RECRUITMENT LTD,438970,581.35,773695871
BEIS,Met Office,2020-02-13,11 SERVICES,SCIENCE,PTR ASSOCIATES LTD,437756,-4350,532192956
BEIS,Met Office,2020-02-13,11 SERVICES,SCIENCE,PTR ASSOCIATES LTD,437756,-4350,532192956
BEIS,Met Office,2020-02-13,11 SERVICES,SCIENCE,PTR ASSOCIATES LTD,438061,-4350,532192956
BEIS,Met Office,2020-02-13,11 SERVICES,SCIENCE,PTR ASSOCIATES LTD,437756,-862.8,532192956
BEIS,Met Office,2020-02-13,11 SERVICES,SCIENCE,PTR ASSOCIATES LTD,438061,-431.4,532192956
BEIS,Met Office,2020-02-13,11 SERVICES,SCIENCE,PTR ASSOCIATES LTD,437757,431.4,532192956
BEIS,Met Office,2020-02-13,11 SERVICES,SCIENCE,PTR ASSOCIATES LTD,438059,431.4,532192956
BEIS,Met Office,2020-02-13,11 SERVICES,SCIENCE,PTR ASSOCIATES LTD,438060,431.4,532192956
BEIS,Met Office,2020-02-13,11 SERVICES,SCIENCE,PTR ASSOCIATES LTD,438059,540,532192956
BEIS,Met Office,2020-02-13,11 SERVICES,SCIENCE,PTR ASSOCIATES LTD,437486,862.8,532192956
BEIS,Met Office,2020-02-13,11 SERVICES,SCIENCE,PTR ASSOCIATES LTD,437486,4350,532192956
BEIS,Met Office,2020-02-13,11 SERVICES,SCIENCE,PTR ASSOCIATES LTD,437486,4350,532192956
BEIS,Met Office,2020-02-13,11 SERVICES,SCIENCE,PTR ASSOCIATES LTD,437757,4350,532192956
BEIS,Met Office,2020-02-13,11 SERVICES,SCIENCE,PTR ASSOCIATES LTD,438060,4350,532192956
BEIS,Met Office,2020-02-03,11 SERVICES,SCIENCE,REDACTED � PERSONAL DATA,438067,180,-
BEIS,Met Office,2020-02-07,11 SERVICES,SCIENCE,SCIENCE & TECHNOLOGY FACILITIES COUNCIL,437295,37500,618367325
BEIS,Met Office,2020-02-05,11 SERVICES,SCIENCE,SCIENCE & TECHNOLOGY FACILITIES COUNCIL,437768,37500,618367325
BEIS,Met Office,2020-02-19,11 SERVICES,SCIENCE,SMHI,21236,249.42,SE202100069601
BEIS,Met Office,2020-02-13,11 SERVICES,SCIENCE,UNIVERSITY OF EXETER,438458,208.34,142047795
BEIS,Met Office,2020-02-06,13 MISCELLANEOUS,SCIENCE,UNIVERSITY OF EXETER,438321,562.5,142047795
BEIS,Met Office,2020-02-17,11 SERVICES,SCIENCE,UNIVERSITY OF EXETER,438615,2121.8,142047795
BEIS,Met Office,2020-02-28,11 SERVICES,SCIENCE,UNIVERSITY OF EXETER,429015,6650,142047795
BEIS,Met Office,2020-02-25,11 SERVICES,SCIENCE,UNIVERSITY OF EXETER,437721,9557.73,142047795
BEIS,Met Office,2020-02-25,11 SERVICES,SCIENCE,UNIVERSITY OF EXETER,437720,19115.47,142047795
BEIS,Met Office,2020-02-19,13 MISCELLANEOUS,SCIENCE,UNIVERSITY OF OXFORD,436585,1000,125506730
BEIS,Met Office,2020-02-19,13 MISCELLANEOUS,SCIENCE,UNIVERSITY OF OXFORD,438890,1000,125506730
BEIS,Met Office,2020-02-07,11 SERVICES,SCIENCE,UNIVERSITY OF OXFORD,438372,50000,125506730
BEIS,Met Office,2020-02-24,13 MISCELLANEOUS,SCIENCE,University Of Reading,438964,-1250,200012659
BEIS,Met Office,2020-02-07,13 MISCELLANEOUS,SCIENCE,University Of Reading,438239,333.33,200012659
BEIS,Met Office,2020-02-06,13 MISCELLANEOUS,SCIENCE,University Of Reading,438242,333.33,200012659
BEIS,Met Office,2020-02-19,13 MISCELLANEOUS,SCIENCE,University Of Reading,438867,333.33,200012659
BEIS,Met Office,2020-02-27,13 MISCELLANEOUS,SCIENCE,University Of Reading,439126,333.33,200012659
BEIS,Met Office,2020-02-06,13 MISCELLANEOUS,SCIENCE,University Of Reading,438243,333.35,200012659
BEIS,Met Office,2020-02-19,13 MISCELLANEOUS,SCIENCE,University Of Reading,438866,1000,200012659
BEIS,Met Office,2020-02-24,13 MISCELLANEOUS,SCIENCE,University Of Reading,438992,1262.5,200012659
BEIS,Met Office,2020-02-14,13 MISCELLANEOUS,SCIENCE,University Of Reading,438710,1687.5,200012659
BEIS,Met Office,2020-02-13,11 SERVICES,SCIENCE,University Of Reading,437870,23406.25,200012659
BEIS,Met Office,2020-02-13,11 SERVICES,SCIENCE,University Of Reading,437871,23406.25,200012659
BEIS,Met Office,2020-02-13,11 SERVICES,SCIENCE,University Of Reading,437872,23406.25,200012659
BEIS,Met Office,2020-02-13,11 SERVICES,SCIENCE,University Of Reading,437869,24660.5,200012659
BEIS,Met Office,2020-02-13,11 SERVICES,SCIENCE,University Of Reading,437873,24660.5,200012659
BEIS,Met Office,2020-02-27,04 CONTRACTORS,SCIENCE,WA CONSULTANTS LTD,439095,2178,876328977
BEIS,Met Office,2020-02-03,11 SERVICES,STRATEGIC INVESTMENT,BAE SYSTEMS APPLIED INTELLIGENCE LIMITED,437905,9519.74,GB641407169
BEIS,Met Office,2020-02-20,11 SERVICES,STRATEGIC INVESTMENT,BAE SYSTEMS APPLIED INTELLIGENCE LIMITED,438939,51093.9,GB641407169
BEIS,Met Office,2020-02-05,11 SERVICES,STRATEGIC INVESTMENT,CACI LTD,438227,80775.5,380609841
BEIS,Met Office,2020-02-25,INFORMATION TECHNOLOGY,STRATEGIC INVESTMENT,Campbell Scientific Ltd,438985,65843.76,428453933
BEIS,Met Office,2020-02-24,05 CONSULTANTS,STRATEGIC INVESTMENT,Ernst & Young Llp,439016,63428,773831408
BEIS,Met Office,2020-02-05,11 SERVICES,STRATEGIC INVESTMENT,FLYFORM LTD,438221,19900,237333808
BEIS,Met Office,2020-02-27,04 CONTRACTORS,STRATEGIC INVESTMENT,QUALSERV CONSULTING LTD,439100,6993.4,719067718
BEIS,Met Office,2020-02-24,04 CONTRACTORS,STRATEGIC INVESTMENT,QUALSERV CONSULTING LTD,439020,8421.12,719067718
BEIS,Met Office,2020-02-25,04 CONTRACTORS,STRATEGIC INVESTMENT,QUALSERV CONSULTING LTD,439036,10287,719067718
BEIS,Met Office,2020-02-10,04 CONTRACTORS,STRATEGIC INVESTMENT,REED,438444,6000,835515525
BEIS,Met Office,2020-02-10,11 SERVICES,STRATEGIC INVESTMENT,ROWE IT LTD,438267,20043.75,924964394
BEIS,Met Office,2020-02-10,11 SERVICES,STRATEGIC INVESTMENT,ROWE IT LTD,438268,56850,924964394
BEIS,Met Office,2020-02-10,04 CONTRACTORS,STRATEGIC INVESTMENT,SOLOS CONSULTANTS LTD,438389,6300,812035476
BEIS,Met Office,2020-02-25,04 CONTRACTORS,STRATEGIC INVESTMENT,SOLOS CONSULTANTS LTD,439033,6992.1,812035476
BEIS,Met Office,2020-02-10,04 CONTRACTORS,STRATEGIC INVESTMENT,SOLOS CONSULTANTS LTD,438412,8140.8,812035476
BEIS,Met Office,2020-02-10,04 CONTRACTORS,STRATEGIC INVESTMENT,SOLOS CONSULTANTS LTD,438411,11492,812035476
BEIS,Met Office,2020-02-10,04 CONTRACTORS,STRATEGIC INVESTMENT,SOLOS CONSULTANTS LTD,438405,15600,812035476
BEIS,Met Office,2020-02-13,04 CONTRACTORS,STRATEGIC INVESTMENT,SOLOS CONSULTANTS LTD,438398,17680,812035476
BEIS,Met Office,2020-02-10,04 CONTRACTORS,STRATEGIC INVESTMENT,WA CONSULTANTS LTD,438438,8639.01,876328977
BEIS,Met Office,2020-02-13,04 CONTRACTORS,STRATEGIC INVESTMENT,WA CONSULTANTS LTD,438652,9968.42,876328977
BEIS,Met Office,2020-02-06,11 SERVICES,TECHNOLOGY,A I MEDIA,438176,63,994262974
BEIS,Met Office,2020-02-06,11 SERVICES,TECHNOLOGY,A I MEDIA,438176,189,994262974
BEIS,Met Office,2020-02-07,11 SERVICES,TECHNOLOGY,AKAMAI TECHNOLOGIES LTD,438261,4248.48,745091237
BEIS,Met Office,2020-02-07,11 SERVICES,TECHNOLOGY,AKAMAI TECHNOLOGIES LTD,438261,21250,745091237
BEIS,Met Office,2020-02-07,11 SERVICES,TECHNOLOGY,AKAMAI TECHNOLOGIES LTD,438261,22304.55,745091237
BEIS,Met Office,2020-02-26,11 SERVICES,TECHNOLOGY,AMAZON WEB SERVICES INC.,9709,16.92,N/A
BEIS,Met Office,2020-02-26,11 SERVICES,TECHNOLOGY,AMAZON WEB SERVICES INC.,9708,25.86,N/A
BEIS,Met Office,2020-02-26,11 SERVICES,TECHNOLOGY,AMAZON WEB SERVICES INC.,9710,95.93,N/A
BEIS,Met Office,2020-02-05,11 SERVICES,TECHNOLOGY,AMAZON WEB SERVICES INC.,9655,11525.87,N/A
BEIS,Met Office,2020-02-05,11 SERVICES,TECHNOLOGY,AMAZON WEB SERVICES INC.,9654,55947.98,N/A
BEIS,Met Office,2020-02-13,11 SERVICES,TECHNOLOGY,AUTOMATION LOGIC,438542,65561.25,985044595
BEIS,Met Office,2020-02-13,11 SERVICES,TECHNOLOGY,CLOUDREACH EUROPE LIMITED,438693,291.84,978187168
BEIS,Met Office,2020-02-13,11 SERVICES,TECHNOLOGY,CLOUDREACH EUROPE LIMITED,438693,1148.15,978187168
BEIS,Met Office,2020-02-13,11 SERVICES,TECHNOLOGY,CLOUDREACH EUROPE LIMITED,438659,2520,978187168
BEIS,Met Office,2020-02-21,11 SERVICES,TECHNOLOGY,CLOUDREACH EUROPE LIMITED,438972,4000,978187168
BEIS,Met Office,2020-02-13,11 SERVICES,TECHNOLOGY,CLOUDREACH EUROPE LIMITED,438659,4590,978187168
BEIS,Met Office,2020-02-21,11 SERVICES,TECHNOLOGY,CLOUDREACH EUROPE LIMITED,438943,7025.85,978187168
BEIS,Met Office,2020-02-24,11 SERVICES,TECHNOLOGY,CLOUDREACH EUROPE LIMITED,438999,11018.14,978187168
BEIS,Met Office,2020-02-04,INFORMATION TECHNOLOGY,TECHNOLOGY,COMPUTACENTER (UK) LTD,438065,-17297,490334648
BEIS,Met Office,2020-02-04,INFORMATION TECHNOLOGY,TECHNOLOGY,COMPUTACENTER (UK) LTD,438066,-14338.98,490334648
BEIS,Met Office,2020-02-12,INFORMATION TECHNOLOGY,TECHNOLOGY,COMPUTACENTER (UK) LTD,438563,-5989.46,490334648
BEIS,Met Office,2020-02-17,07 EQUIPMENT,TECHNOLOGY,COMPUTACENTER (UK) LTD,438507,243.2,490334648
BEIS,Met Office,2020-02-12,07 EQUIPMENT,TECHNOLOGY,COMPUTACENTER (UK) LTD,438463,3165.6,490334648
BEIS,Met Office,2020-02-04,10 EQUIPMENT MAINTENANCE,TECHNOLOGY,COMPUTACENTER (UK) LTD,438132,3876.19,490334648
BEIS,Met Office,2020-02-12,INFORMATION TECHNOLOGY,TECHNOLOGY,COMPUTACENTER (UK) LTD,438561,5988.46,490334648
BEIS,Met Office,2020-02-04,10 EQUIPMENT MAINTENANCE,TECHNOLOGY,COMPUTACENTER (UK) LTD,438159,54452.54,490334648
BEIS,Met Office,2020-02-03,08 SOFTWARE LICENCES,TECHNOLOGY,DAISY COMMUNICATIONS,438133,27730,722 4713 55
BEIS,Met Office,2020-02-07,08 SOFTWARE LICENCES,TECHNOLOGY,Esri (Uk) Ltd,438374,5975,787430791
BEIS,Met Office,2020-02-13,04 CONTRACTORS,TECHNOLOGY,FDM GROUP LIMITED,438586,1350,583540529
BEIS,Met Office,2020-02-13,04 CONTRACTORS,TECHNOLOGY,FDM GROUP LIMITED,438587,1890,583540529
BEIS,Met Office,2020-02-13,04 CONTRACTORS,TECHNOLOGY,FDM GROUP LIMITED,438584,5400,583540529
BEIS,Met Office,2020-02-13,04 CONTRACTORS,TECHNOLOGY,GCS IT RECRUITMENT SPECIALISTS LTD,438568,455,896156575
BEIS,Met Office,2020-02-12,04 CONTRACTORS,TECHNOLOGY,GCS IT RECRUITMENT SPECIALISTS LTD,438566,7735,896156575
BEIS,Met Office,2020-02-06,08 SOFTWARE LICENCES,TECHNOLOGY,GOOGLE IRELAND LTD,438173,39.5,6388047V
BEIS,Met Office,2020-02-11,04 CONTRACTORS,TECHNOLOGY,HAYS SPECIALIST RECRUITMENT LTD,438506,543.6,773695871
BEIS,Met Office,2020-02-17,04 CONTRACTORS,TECHNOLOGY,HAYS SPECIALIST RECRUITMENT LTD,438777,558.7,773695871
BEIS,Met Office,2020-02-25,04 CONTRACTORS,TECHNOLOGY,HAYS SPECIALIST RECRUITMENT LTD,439066,566.25,773695871
BEIS,Met Office,2020-02-13,10 EQUIPMENT MAINTENANCE,TECHNOLOGY,Hewlett Packard Ltd,438629,1599.6,314149679
BEIS,Met Office,2020-02-12,10 EQUIPMENT MAINTENANCE,TECHNOLOGY,Hewlett Packard Ltd,438628,1882.8,314149679
BEIS,Met Office,2020-02-13,10 EQUIPMENT MAINTENANCE,TECHNOLOGY,Hewlett Packard Ltd,438627,2599.29,314149679
BEIS,Met Office,2020-02-18,11 SERVICES,TECHNOLOGY,IBM UNITED KINGDOM LTD,438567,-604.38,107328000
BEIS,Met Office,2020-02-18,11 SERVICES,TECHNOLOGY,IBM UNITED KINGDOM LTD,438828,6062.7,107328000
BEIS,Met Office,2020-02-05,08 SOFTWARE LICENCES,TECHNOLOGY,IBM UNITED KINGDOM LTD,438223,11679.7,107328000
BEIS,Met Office,2020-02-13,11 SERVICES,TECHNOLOGY,NEXUS OPEN SYSTEMS LTD,438058,1995,723221673
BEIS,Met Office,2020-02-17,08 SOFTWARE LICENCES,TECHNOLOGY,NTT DATA UK LTD,438773,39944.99,GB159334590
BEIS,Met Office,2020-02-17,10 EQUIPMENT MAINTENANCE,TECHNOLOGY,ORACLE CORPORATION UK LTD,438774,3485.09,391313073
BEIS,Met Office,2020-02-10,04 CONTRACTORS,TECHNOLOGY,OUTSOURCE UK LIMITED,438442,4451.58,576118722
BEIS,Met Office,2020-02-10,04 CONTRACTORS,TECHNOLOGY,OUTSOURCE UK LIMITED,438441,5125,576118722
BEIS,Met Office,2020-02-10,04 CONTRACTORS,TECHNOLOGY,OUTSOURCE UK LIMITED,438443,6750,576118722
BEIS,Met Office,2020-02-10,04 CONTRACTORS,TECHNOLOGY,OUTSOURCE UK LIMITED,438446,8369.62,576118722
BEIS,Met Office,2020-02-13,11 SERVICES,TECHNOLOGY,QA LTD,438577,968.1,864455303
BEIS,Met Office,2020-02-26,04 CONTRACTORS,TECHNOLOGY,QUALSERV CONSULTING LTD,439088,6121.8,719067718
BEIS,Met Office,2020-02-26,04 CONTRACTORS,TECHNOLOGY,QUALSERV CONSULTING LTD,439081,9768.6,719067718
BEIS,Met Office,2020-02-13,10 EQUIPMENT MAINTENANCE,TECHNOLOGY,RAMAN POWER TECHNOLOGIES LTD,438641,6480.8,-
BEIS,Met Office,2020-02-10,04 CONTRACTORS,TECHNOLOGY,REED,438444,4496,835515525
BEIS,Met Office,2020-02-10,04 CONTRACTORS,TECHNOLOGY,REED,438444,5742,835515525
BEIS,Met Office,2020-02-10,04 CONTRACTORS,TECHNOLOGY,REED,438444,8526.6,835515525
BEIS,Met Office,2020-02-10,04 CONTRACTORS,TECHNOLOGY,REED,438444,12340.5,835515525
BEIS,Met Office,2020-02-10,04 CONTRACTORS,TECHNOLOGY,SOLOS CONSULTANTS LTD,438403,5878.2,812035476
BEIS,Met Office,2020-02-10,04 CONTRACTORS,TECHNOLOGY,SOLOS CONSULTANTS LTD,438399,7837.4,812035476
BEIS,Met Office,2020-02-10,04 CONTRACTORS,TECHNOLOGY,SOLOS CONSULTANTS LTD,438395,7864.85,812035476
BEIS,Met Office,2020-02-10,04 CONTRACTORS,TECHNOLOGY,SOLOS CONSULTANTS LTD,438383,8140.8,812035476
BEIS,Met Office,2020-02-10,04 CONTRACTORS,TECHNOLOGY,SOLOS CONSULTANTS LTD,438410,8988.4,812035476
BEIS,Met Office,2020-02-10,04 CONTRACTORS,TECHNOLOGY,SOLOS CONSULTANTS LTD,438380,10400,812035476
BEIS,Met Office,2020-02-10,04 CONTRACTORS,TECHNOLOGY,SOLOS CONSULTANTS LTD,438388,10675,812035476
BEIS,Met Office,2020-02-10,04 CONTRACTORS,TECHNOLOGY,SOLOS CONSULTANTS LTD,438400,11158.51,812035476
BEIS,Met Office,2020-02-10,04 CONTRACTORS,TECHNOLOGY,SOLOS CONSULTANTS LTD,438414,11495,812035476
BEIS,Met Office,2020-02-10,04 CONTRACTORS,TECHNOLOGY,SOLOS CONSULTANTS LTD,438384,11745.8,812035476
BEIS,Met Office,2020-02-10,04 CONTRACTORS,TECHNOLOGY,SOLOS CONSULTANTS LTD,438408,12402,812035476
BEIS,Met Office,2020-02-10,04 CONTRACTORS,TECHNOLOGY,SOLOS CONSULTANTS LTD,438409,13000,812035476
BEIS,Met Office,2020-02-10,04 CONTRACTORS,TECHNOLOGY,SOLOS CONSULTANTS LTD,438385,13585,812035476
BEIS,Met Office,2020-02-10,04 CONTRACTORS,TECHNOLOGY,SOLOS CONSULTANTS LTD,438379,13780,812035476
BEIS,Met Office,2020-02-10,04 CONTRACTORS,TECHNOLOGY,SOLOS CONSULTANTS LTD,438407,15105,812035476
BEIS,Met Office,2020-02-10,04 CONTRACTORS,TECHNOLOGY,SOLOS CONSULTANTS LTD,438413,18720,812035476
BEIS,Met Office,2020-02-19,11 SERVICES,TECHNOLOGY,SPRUCE CONSULTING,438889,1308,724384923
BEIS,Met Office,2020-02-06,07 EQUIPMENT,TECHNOLOGY,SSE CONTRACTING LTD,437517,-9817.36,570118464
BEIS,Met Office,2020-02-06,07 EQUIPMENT,TECHNOLOGY,SSE CONTRACTING LTD,437025,9817.36,570118464
BEIS,Met Office,2020-02-06,11 SERVICES,TECHNOLOGY,SSE CONTRACTING LTD,438212,9817.36,570118464
BEIS,Met Office,2020-02-05,11 SERVICES,TECHNOLOGY,UKCLOUD LTD,438214,1638,172647982
BEIS,Met Office,2020-02-18,04 CONTRACTORS,TECHNOLOGY,WA CONSULTANTS LTD,438614,673.75,876328977
BEIS,Met Office,2020-02-13,04 CONTRACTORS,TECHNOLOGY,WA CONSULTANTS LTD,438642,2917.05,876328977
BEIS,Met Office,2020-02-10,04 CONTRACTORS,TECHNOLOGY,WA CONSULTANTS LTD,438428,4860.6,876328977
BEIS,Met Office,2020-02-10,04 CONTRACTORS,TECHNOLOGY,WA CONSULTANTS LTD,438434,5586,876328977
BEIS,Met Office,2020-02-10,04 CONTRACTORS,TECHNOLOGY,WA CONSULTANTS LTD,438435,5684.6,876328977
BEIS,Met Office,2020-02-10,04 CONTRACTORS,TECHNOLOGY,WA CONSULTANTS LTD,438428,6990,876328977
BEIS,Met Office,2020-02-27,04 CONTRACTORS,TECHNOLOGY,WA CONSULTANTS LTD,439096,7800,876328977
BEIS,Met Office,2020-02-13,04 CONTRACTORS,TECHNOLOGY,WA CONSULTANTS LTD,438643,8145.62,876328977
BEIS,Met Office,2020-02-10,04 CONTRACTORS,TECHNOLOGY,WA CONSULTANTS LTD,438432,8989.64,876328977
BEIS,Met Office,2020-02-10,04 CONTRACTORS,TECHNOLOGY,WA CONSULTANTS LTD,438436,10050,876328977
BEIS,Met Office,2020-02-10,04 CONTRACTORS,TECHNOLOGY,WA CONSULTANTS LTD,438439,10761,876328977
BEIS,Met Office,2020-02-10,04 CONTRACTORS,TECHNOLOGY,WA CONSULTANTS LTD,438429,13090,876328977
BEIS,Met Office,2020-02-10,04 CONTRACTORS,TECHNOLOGY,WA CONSULTANTS LTD,438459,15000,876328977
BEIS,Met Office,2020-02-06,11 SERVICES,TECHNOLOGY,WIREFAST LTD,438217,506.94,749536001
BEIS,Met Office,2020-02-06,11 SERVICES,TECHNOLOGY,WIREFAST LTD,438218,5635.83,749536001
